Workbook

Sheet Index
A1: Sheet | B1: INDEX | F1: Technology Data for Energy Carrier Generation and Conversion June 2017
A2: 2 | B2: 81 Biogas Plant, Basic conf.
A3: 3 | B3: 81 Biogas Plant, Add. Straw
A4: 4 | B4: 81 Biogas Plant, Add. Org Waste
A5: 5 | B5: 82 Biogas, upgrading
A6: 6 | B6: 83 Gasif. Fixed Bed, Producer
A7: 7 | B7: 84 Gasif. CFB, Bio-SNG
A8: 8 | B8: 85 Gasif. Ent. Flow FT, Bio Di
A9: 9 | B9: 86 SOEC
A10: 10 | B10: 87 PEM Electrolyser
A11: 11 | B11: 88 Alkaline Electrolyser
A12: 12 | B12: 89 Vegetable oil FAME
A13: 13 | B13: 90 UCO & animal fat FAME
A14: 14 | B14: 91 Hydrogenated vegetable oil
A15: 15 | B15: 92 HVO jet fuel
A16: 16 | B16: 93 1st generation ethanol
A17: 17 | B17: 94 Pyrolysis oils
A18: 18 | B18: 95 Cellulosic ethanol
A19: 19 | B19: 96 Biomass to diesel an j. fuel
A20: 20 | B20: 97 Methanol from biomass gasif.
A21: 21 | B21: 98 Methanol from power
A22: 22 | B22: 99 SNG from methan. of biogas
A23: 23 | B23: 100 Hydrothermal liquifaction
A24: 24 | B24: 101 Catalytic Hydropyrolysis 2
A25: 25 | B25: 101 Catalytic Hydropyrolysis 1

Sheet 81 Biogas Plant, Basic conf.
F1: Technology | G1: Biogas plant, basic configuration
F3: Technology | G3: Biogas plant, basic configuration
G4: 2015 | H4: 2020 | I4: 2030 | J4: 2050 | K4: Uncertainty (2020) | M4: Uncertainty (2050) | O4: Note | P4: Ref
F5: Energy/technical data | K5: Lower | L5: Upper | M5: Lower | N5: Upper
F6: Typical capacity (tons/year input)
F7: Typical total plant size (MW output) | G7: 9.241743291 | H7: 8.682926948 | I7: 8.682926948 | J7: 8.682926948 | K7: 8.317568962 | L7: 9.551219643 | M7: 8.317568962 | N7: 9.551219643 | O7: A
F9: - Inputs
F10: Biomass (tons/year) | G10: 365000 | H10: 365000 | I10: 365000 | J10: 365000 | K10: 365000 | L10: 365000 | M10: 365000 | N10: 365000 | O10: A B | P10: 5/8/9
F11: Aux. electricity (% of output energy) | G11: 3.69694984 | H11: 3.819586497 | I11: 3.819586497 | J11: 3.819586497 | K11: 1.919475629 | L11: 6.718164702 | M11: 1.919475629 | N11: 6.718164702 | O11: A | P11: 5/8/9
F12: Aux. electricity (kWh/ton input) | G12: 8.199902731 | H12: 7.959645727 | I12: 7.959645727 | J12: 7.959645727 | K12: =K11*G12/G11 -> 4.257432244 | L12: =L11*H12/H11 -> 14 | M12: 4 | N12: 14
F13: Aux. process heat (% of output energy) | G13: 8.385863744 | H13: 8.925561675 | I13: 8.925561675 | J13: 8.925561675 | K13: 7.198033609 | L13: 11.99672268 | M13: 7.198033609 | N13: 11.99672268 | O13: A | P13: 5/8/9
F14: Aux. process heat (kWh/ton input)) | G14: 18.6 | H14: 18.6 | I14: 18.6 | J14: 18.6 | K14: =K13*G14/G13 -> 15.96537092 | L14: 25 | M14: 15 | N14: 25
F16: - Outputs
F17: Biogas (%) | G17: 100 | H17: 100 | I17: 100 | J17: 100 | K17: 95.79222549 | L17: 110 | M17: 95.79222549 | N17: 110 | O17: F
F18: Biogas (GJ/ton input) | G18: 0.7984866203 | H18: 0.7502048883 | I18: 0.7502048883 | J18: 0.7502048883 | K18: 0.7186379583 | L18: 0.8252253772 | M18: 0.7186379583 | N18: 0.8252253772 | O18: G | P18: 9
F19: Biogas production, (MJ/S heating value) | O19: J
F21: Forced outage (%) | G21: 0 | H21: 0 | I21: 0 | J21: 0
F22: Planned outage (days per year) | G22: 10 | H22: 10 | I22: 10 | J22: 10
F23: Technical lifetime (years) | G23: 20 | H23: 20 | I23: 20 | J23: 20
F24: Construction time (years) | G24: 1 | H24: 1 | I24: 1 | J24: 1
F26: Financial data
F27: Specific investment (mio €/MW output) | G27: 1.814141573 | H27: 1.710692033 | I27: 1.53962283 | J27: 1.385660547 | K27: 1.53962283 | L27: 1.900768926 | M27: 1.247094492 | N27: 1.53962283 | O27: A H C | P27: 8/5
F28: - of which equipment | G28: - | H28: -
F29: - of which installation | G29: - | H29: -
F30: Total O&M (€/MW/year) | G30: =G31*$G$10/G7 -> 198785.1794 | H30: =H31*$G$10/H7 -> 194715.0214 | I30: 197702.4392 | J30: 195722.307 | K30: 154397.5872 | L30: 245575.0367 | M30: 150000.9903 | N30: 252438.887
F31: Total O&M (€/(ton input/year)) | G31: =SUM(G32:G34) -> 5.033209858 | H31: =SUM(H32:H34) -> 4.632044676 | I31: 4.703111883 | J31: 4.656006831 | K31: 3.518390627 | L31: 6.426140041 | M31: 3.418201592 | N31: 6.605751387 | O31: A D I | P31: 8/5
F32: - of which O&M, excl el. and heat (€/(ton input/year)) | G32: 4.106615986 | H32: 3.672829121 | I32: 3.489187665 | J32: 3.314728281 | K32: 2.814627803 | L32: 5.050140041 | M32: 2.540201592 | N32: 4.557751387 | O32: A D I | P32: 8/5
F33: - of which electricity (€/(ton input/year)) | G33: =G12*0.063 -> 0.5165938721 | H33: =H12*0.069 -> 0.5492155551 | I33: =I12*0.101 -> 0.8039242184 | J33: =J12*0.117 -> 0.93127855 | K33: =K12*0.069 -> 0.2937628248 | L33: =L12*0.069 -> 0.966 | M33: =M12*0.117 -> 0.468 | N33: =N12*0.117 -> 1.638 | O33: K
F34: - of which heat (€/(ton input/year)) | G34: 0.41 | H34: 0.41 | I34: 0.41 | J34: 0.41 | K34: 0.41 | L34: 0.41 | M34: 0.41 | N34: 0.41
F36: Technology Specific data
F37: Methane emission (Nm3 CH4/ton input/year) | G37: 0.44 | H37: 0.42 | I37: 0.42 | J37: 0.42 | K37: 0.17 | L37: 0.88 | M37: 0.17 | N37: 0.88 | O37: J | P37: 12
A55: Notes:
A56: A | B56: The production, investment- and operation costs are based on a plant with a yearly input of 365,000 tons and a mix of available feedstock sources as described in [9] and [8], but excluding straw, energy crops, garden waste and aquatic biomass. The available feedstock composition for 2015 is obtained by interpolation of 2012 and 2020 potentials. The feedstock composition after 2020 is assumed constant. The output of a specific plant will vary depending on the actual feedstock composition.
A57: B | B57: Values are assumed valid for a range 200,000 - 400,000 tons per year
A58: C | B58: The investment includes a straw fired boiler for process heat.
A59: D | B59: All O&M considered fixed, assuming 8760 hours operation per year. Does not include costs for biomass purchase and transport. Data for biomass included in biogas plant, basic configuration, 2015, is inluded below. Source: Reference [5].
F60: Biomass | G60: Share, 2015 | H60: Share, 2020 | I60: Price per ton (€), incl transport
F61: Manure (pig and cattle) | G61: 0.798 | H61: 0.8378913968 | I61: 3.355704698
F62: Deep bed material | G62: 0.08 | H62: 0.08463832761 | I62: 6.711409396
F63: Manure, stable | G63: 0.061 | H63: 0.002439063253 | I63: 6.711409396
F64: Straw | G64: 0 | H64: 0 | I64: 67.38255034
F65: Industrial organic waste | G65: 0.01 | H65: 0.01200879966 | I65: 40.26845638
F66: Household waste | G66: 0.016 | H66: 0.01246246543 | I66: 18.8590604
F67: Energy crops | G67: 0 | H67: 0 | I67: 34.89932886
F68: Other | G68: 0.035 | H68: 0.05055994726 | I68: 27.91946309
A70: F | B70: For compatibility with the template the energy of the biogas output is assumed to be 100%. (For most of the input material a calorific value is not relevant)
A71: G | B71: A calorific value of methane of 35.9 MJ/Nm3 is used. The input material composition and the output is assumed constant after 2020.
A72: H | B72: Learning curve effects have been assumed 2015-2020: 10% reductions, 2020-2030: 10% reductions, 2030-2050: 10% reductions
A73: I | B73: Learning curve effects have been assumed 2015-2020: 5% reductions, 2020-2030: 5% reductions, 2030-2050: 5% reductions
A74: J | B74: Corresponding to 2% of the produced biogas, wit lower value 0.8% and upper value 4.2%. This will vary and can be reduced.
A75: K | B75: The cost of auxiliary electricity consumption is calculated using the following electricity prices in €/MWh: 2015: 63, 2020: 69, 2030: 101, 2050: 117. These prices include production costs and transport tariffs, but not any taxes or subsidies for renewable energy.
A76: References:
A77: 5 | F77: "Udvikling og effektivisering af biogasproduktionen I Danmark – Delrapport 1 og 2”, Danish Energy Agency Biogas Taskforce 2015.
A78: 8 | F78: ”Anvendelse af biogas til el- og varmeproduktion, analyser for Biogas Taskforce”, Ea Energianalyse, 2014
A79: 9 | F79: "Biomasse til biogasanlæg i Danmark - på kort og langt sigt", Agrotech, November 2013
A80: 12 | F80: ”Miljøeffekter af metanlækage på biogasanlæg”, Agrotek, 2015

Sheet 81 Biogas Plant, Add. Straw
H1: Back to Index | I1: Biogas plant, additional straw input in the feedstock mix
H3: Technology | I3: Biogas plant, additional straw input in the feedstock mix
I4: 2015 | J4: 2020 | K4: 2030 | L4: 2050 | M4: Uncertainty (2020) | O4: Uncertainty (2050) | Q4: Note | R4: Ref
H5: Energy/technical data | M5: Lower | N5: Upper | O5: Lower | P5: Upper
H6: Biogas from additional straw (MW output) | I6: 1 | Q6: A B
H8: - Inputs
H9: Straw input (% of additional output) | I9: 1.99410888 | J9: 1.819261456 | K9: 1.819261456 | L9: 1.819261456 | Q9: A B | R9: 5/8/9
H10: Straw input (tons per year) | I10: 4336.980526 | J10: 3956.705467 | K10: 3956.705467 | L10: 3956.705467
H11: Auxilliary electricity input (% of additional output) | I11: 0.03124012228 | J11: 0.02850092636 | K11: 0.02850092636 | L11: 0.02850092636 | R11: 5/8/9
H12: Auxilliary electricity input (kWh/ton straw) | I12: 63 | J12: 63 | K12: 63 | L12: 63 | Q12: A
H13: Additional process heat (% of additional output) | I13: 0.009208657281 | J13: 0.008401223936 | K13: 0.008401223936 | L13: 0.008401223936 | R13: 5/8/9
H14: Auxilliary process heat (kWh/ton straw input) | I14: 18.6 | J14: 18.6 | K14: 18.6 | L14: 18.6 | Q14: A
H16: - Outputs
H17: Biogas (%) | I17: 1 | J17: 1 | K17: 1 | L17: 1 | Q17: A C
H18: Biogas (GJ/ton straw input) | I18: 7.27 | J18: 7.97 | K18: 7.97 | L18: 7.97 | Q18: A C | R18: 9
H19: Residual organic material | Q19: D
H21: Forced outage (%) | I21: 0 | J21: 0 | K21: 0 | L21: 0
H22: Planned outage (days per year) | I22: 10 | J22: 10 | K22: 10 | L22: 10
H23: Technical lifetime (years) | I23: 20 | J23: 20 | K23: 20 | L23: 20
H24: Construction time (years) | I24: 1 | J24: 1 | K24: 1 | L24: 1
H26: Financial data
H27: Investment (€/MW) | I27: 407676.1694 | J27: 371930.3139 | K27: 371930.3139 | L27: 371930.3139 | Q27: AEG | R27: 8/5
H28: Investment (€/ton straw input/year) | I28: 94 | J28: 94 | K28: 94 | L28: 94 | Q28: AEG
H29: Total O&M (€/MW/year) | I29: =I30*I10 -> 47386.62114 | J29: =J30*J10 -> 44727.30283 | K29: 52704.02105 | L29: 56692.38016 | Q29: AFG | R29: 8/5
H30: Total O&M (€/ton straw input/year) | I30: =SUM(I31:I33) -> 10.92617798 | J30: =SUM(J31:J33) -> 11.30417798 | K30: 13.32017798 | L30: 14.32817798 | Q30: AFG
H31: - of which O&M, excl el. and heat (€/(ton input/year)) | I31: 6.547177984 | J31: 6.547177984 | K31: 6.547177984 | L31: 6.547177984
H32: - of which electricity (€/(ton input/year)) | I32: =63*I12/1000 -> 3.969 | J32: =69*J12/1000 -> 4.347 | K32: =101*K12/1000 -> 6.363 | L32: =117*L12/1000 -> 7.371 | Q32: K
H33: - of which heat (€/(ton input/year)) | I33: =0.0220430107526882*I14 -> 0.41 | J33: =0.0220430107526882*J14 -> 0.41 | K33: 0.41 | L33: 0.41
H35: Technology Specific data
H36: Methane emission (Nm3 CH4 input/year) | I36: 4 | J36: 4.4 | K36: 4.4 | L36: 4.4 | M36: 1.8 | N36: 9.2 | O36: 1.8 | P36: 9.2 | Q36: H | R36: 12
G37: =500/7.48 -> 66.84491979 | H37: - of which proces electricity | I37: =#REF!*100 ->  | J37: =#REF! ->  | K37: =J37 ->  | L37: =K37 ->  | Q37: A, E | R37: 8/13
F47: Notes:
F48: A | G48: The data sheet shows the expected energy output and values for the input of industrial organic waste specifically. The values refer to a virtual part of a total plant processing the straw. A plant including increased share of straw may be composed by adding a basic plant part and straw processing part.
F49: B | G49: Values are assumed valid for adding a smaller part of straw to a total plant. Maximum share not assessed.
F50: C | G50: For compatibility with the template the energy of the biogas output is assumed to be 100%. (For the input material a calorific value is not relevant) | H50: For compatibility with the template the energy of the biogas output is assumed to be 100%. (For the input material a calorific value is not relevant)
F51: D | H51: The energy content of residual organic material has not been evaluated due to lack of sources.
F52: E | G52: Investment in straw preparation equipment (57 Eur/ton/year) and proportional share of basic plant included. Biogas processing time is 25 days
F53: F | G53: All O&M considered fixed, assuming 8760 hours operation per year. Does not include fuel for process heat, electricity, biomass purchase and transport, see e.g. [5] and [8].
F54: G | G54: The value will vary with the quality of the input. Assumed average value used corresponding to 320 Nm3 CH4 / ton VS, TS 42%, vs/ts 90%. [8].
F55: H | G55: Learning curve effects have not been considered. Will depend on actrual deployment of technology.
F56: J | G56: Corresponding to 2% of the produced biogas, wit lower value 0.8% and upper value 4.2%. This will vary and can be reduced.
F57: K | G57: The cost of auxiliary electricity consumption is calculated using the following electricity prices in €/MWh: 2015: 63, 2020: 69, 2030: 101, 2050: 117. These prices include production costs and transport tariffs, but not any taxes or subsidies for renewable energy.
F59: References:
F60: 5 | H60: "Udvikling og effektivisering af biogasproduktionen I Danmark – Delrapport 1 og 2”, Danish Energy Agency Biogas Taskforce 2015.
F61: 8 | H61: ”Anvendelse af biogas til el- og varmeproduktion, analyser for Biogas Taskforce”, Ea Energianalyse, 2014
F62: 9 | H62: "Biomasse til biogasanlæg i Danmark - på kort og langt sigt", Agrotech, November 2013
F63: 12 | H63: ”Miljøeffekter af metanlækage på biogasanlæg”, Agrotek, 2015

Sheet 81 Biogas Plant, Add. Org Waste
C1: Technology | D1: Biogas plant, additional industrial organic waste in the feedstock mix
C3: Technology | D3: Biogas plant, additional industrial organic waste in the feedstock mix
D4: 2015 | E4: 2020 | F4: 2030 | G4: 2050 | H4: Uncertainty (2020) | J4: Uncertainty (2050) | L4: Note | M4: Ref
C5: Energy/technical data | H5: Lower | I5: Upper | J5: Lower | K5: Upper
C6: Biogas from additional ind. organic waste (MW output) | D6: 1 | L6: A B
C8: - Inputs
C9: Ind. organic waste input (% of additional output) | D9: 125-200% | E9: 125-200% | F9: 125-200% | G9: 125-200% | L9: L
C10: Ind. organic waste input (tons per year) | D10: 6529.192547 | E10: 6529.192547 | F10: 6529.192547 | G10: 6529.192547 | M10: 5
C11: Aux. electricity (% of additional output) | D11: 0.007677018634 | E11: 0.007677018634 | F11: 0.007677018634 | G11: 0.007677018634 | M11: 5
C12: Aux. electricity (kWh/ton waste input) | D12: 10.3 | E12: 10.3 | F12: 10.3 | G12: 10.3 | L12: A
C13: Aux. process heat (% of additional output) | D13: 0.01386335404 | E13: 0.01386335404 | F13: 0.01386335404 | G13: 0.01386335404 | M13: 5
C14: Aux. process heat (kWh/ton waste input)) | D14: 18.6 | E14: 18.6 | F14: 18.6 | G14: 18.6 | L14: A
C16: - Outputs
C17: Biogas (% of total input) | D17: 1 | E17: 1 | F17: 1 | G17: 1 | L17: A C
C18: Biogas (GJ/ton ind. org. waste input) | D18: 4.83 | E18: 4.83 | F18: 4.83 | G18: 4.83 | L18: ACG | M18: 5/9
C19: Residual organic material | L19: D
C21: Forced outage (%) | D21: 0 | E21: 0 | F21: 0 | G21: 0
C22: Planned outage (days per year) | D22: 10 | E22: 10 | F22: 10 | G22: 10
C23: Technical lifetime (years) | D23: 20 | E23: 20 | F23: 20 | G23: 20
C24: Construction time (years) | D24: 1 | E24: 1 | F24: 1 | G24: 1
C26: Financial data
C27: Investment (€/MW output) | D27: 276050.4202 | E27: 276050.4202 | F27: 276050.4202 | G27: 276050.4202 | L27: AEH | M27: 8/5
C28: Investment (€/ton waste input / year) | D28: 42.27941176 | E28: 42.27941176 | F28: 42.27941176 | G28: 42.27941176 | L28: AEH
C29: Total O&M (€/MW/year) | D29: =D30*D10 -> 49500.28022 | E29: =E30*E10 -> 49903.78432 | F29: 52055.80618 | G29: 53131.81712 | L29: AFH | M29: 8/5
C30: Total O&M (€/ton waste input/year) | D30: =D31+D32+D33 -> 7.581378535 | E30: =E31+E32+E33 -> 7.643178535 | F30: 7.972778535 | G30: 8.137578535 | L30: AFH
C31: - of which O&M, excl el. and heat (€/(ton input/year)) | D31: 6.522478535 | E31: 6.522478535 | F31: 6.522478535 | G31: 6.522478535
C32: - of which electricity (€/(ton input/year)) | D32: =63*D12/1000 -> 0.6489 | E32: =69*E12/1000 -> 0.7107 | F32: =101*F12/1000 -> 1.0403 | G32: =117*G12/1000 -> 1.2051 | L32: K
C33: - of which heat (€/(ton input/year)) | D33: =0.0220430107526882*D14 -> 0.41 | E33: =0.0220430107526882*E14 -> 0.41 | F33: 0.41 | G33: 0.41
C35: Technology Specific data
C36: Methane emission (Nm3 CH4 input/year) | D36: 4 | E36: 4.4 | F36: 4.4 | G36: 4.4 | H36: 1.8 | I36: 9.2 | J36: 1.8 | K36: 9.2 | L36: H | M36: 12
A46: Notes:
A47: A | B47: The data sheet shows the expected energy output and values for the input of industrial organic waste specifically. The values refer to a virtual part of a total plant processing the industrial organic waste. A plant including including increased share of industrial organic waste may be composed by adding a basic plant part and an ind. org. waste processing part.
A48: B | B48: Values are assumed valid for adding a smaller part of straw to a total plant. Maximum share not assessed.
A49: C | B49: For compatibility with the template the energy of the biogas output is assumed to be 100%. (For the input material a calorific value is not relevant) | C49: For compatibility with the template the energy of the biogas output is assumed to be 100%. (For the input material a calorific value is not relevant)
A50: D | C50: The energy content of residual organic material has not been evaluated due to lack of sources.
A51: E | B51: Investment in straw preparation equipment (57 Eur/ton/year) and proportional share of basic plant included. Biogas processing time is 25 days
A52: F | B52: All O&M considered fixed, assuming 8760 hours operation per year. Does not include fuel for process heat, electricity, biomass purchase and transport, see e.g. [5] and [8]. O&M costs for straw processing equipment, 10 Eur/ton/year, and proportional share of basic plant included.
A53: G | B53: The value will vary with the quality of the input. Assumed average value used corresponding to 320 Nm3 CH4 / ton VS, TS 42%, vs/ts 90%. [8].
A54: H | B54: Learning curve effects have not been considered. Will depend on actrual deployment of technology.
A55: J | B55: Calculated with a constant production 8760 hours per year
A56: K | C56: The cost of auxiliary electricity consumption is calculated using the following electricity prices in €/MWh: 2015: 63, 2020: 69, 2030: 101, 2050: 117. These prices include production costs and transport tariffs, but not any taxes or subsidies for renewable energy.
A57: L | C57: The conversion efficiency depends on the specific types of industrial waste used at the biogas plants.
C58: Fatty biomasses may be converted with high efficiences (>70 %) whereas for example the conversion of protein rich biomasses is closer to 50 %.
A60: References:
A61: 5 | C61: "Udvikling og effektivisering af biogasproduktionen I Danmark – Delrapport 1 og 2”, Danish Energy Agency Biogas Taskforce 2015.
A62: 8 | C62: ”Anvendelse af biogas til el- og varmeproduktion, analyser for Biogas Taskforce”, Ea Energianalyse, 2014
A63: 9 | C63: "Biomasse til biogasanlæg i Danmark - på kort og langt sigt", Agrotech, November 2013
A64: 12 | C64: ”Miljøeffekter af metanlækage på biogasanlæg”, Agrotek, 2015

Sheet 82 Biogas, upgrading
H1: Back to Index
F2: Technology | G2: Biogas upgrading
F3: Technology | G3: Biogas upgrading
G4: 2015 | H4: 2020 | I4: 2030 | J4: 2050 | K4: Uncertainty (2020) | M4: Uncertainty (2050) | O4: Note | P4: Ref
F5: Energy/technical data | K5: Lower | L5: Upper | M5: Lower | N5: Upper
F6: Typical total size (MJ output/s) | G6: 5.92218 | H6: 5.92218 | I6: 5.92218 | J6: 5.92218 | O6: A G
F7: Typical total size (Nm3 biogas/h) | G7: 1000 | H7: 1000 | I7: 1000 | J7: 1000 | O7: A B | P7: 1/4
F8: Capacity (Nm3 biomethane/h) | G8: 594 | H8: 594 | I8: 594 | J8: 594 | O8: A B
F10: - Inputs
F11: Biogas (% of biogas input) | G11: 1 | H11: 100 | I11: 100 | J11: 100
F12: Auxilliary electricity for upgrading (% of biogas input) | G12: 0.04312938816 | H12: 0.04312938816 | I12: 0.02156469408 | J12: 0.02156469408 | K12: 0.03234704112 | L12: 0.04312938816 | M12: 0.01617352056 | N12: 0.03234704112 | O12: A D J | P12: 1/2/4/7
F13: Auxilliary electricity for compression (% of biogas input) | G13: 0.01003009027 | H13: 0.01003009027 | I13: 0.01003009027 | J13: 0.01003009027 | O13: A F | P13: 2/4
F14: Heat (% of biogas input) | G14: 0 | H14: 0 | I14: 0 | J14: 0 | P14: 2/4
F16: - Outputs
F17: Biomethane (% of biogas input) | G17: 0.99 | H17: 0.99 | I17: 1 | J17: 1 | O17: I | P17: 2
F18: Waste gas (% of biogas input) | G18: 0.01 | H18: 0.01 | I18: 0.001 | J18: 0.001 | O18: I
F19: Waste heat (% of biogas input) | G19: 0.053 | H19: 0.053 | I19: 0.032 | J19: 0.032
F21: Forced outage (weeks per year) | G21: 1 | H21: 1 | I21: 1 | J21: 1
F22: Planned outage (weeks per year) | G22: 1 | H22: 1 | I22: 1 | J22: 1
F23: Technical lifetime (years) | G23: 15 | H23: 15 | I23: 15 | J23: 15
F24: Construction time (years) | G24: 0.5 | H24: 0.5 | I24: 0.5 | J24: 0.5
F26: Financial data
F27: Specific investment, upgrading and methane reduction (€/MJ/s input) | G27: 335000 | H27: 302000 | I27: 272000 | J27: 245000 | K27: 268000 | L27: 318000 | M27: 172000 | N27: 287000 | O27: C D | P27: 1/2/5/7
F28: Specific investment, grid injection at 40bar (€/MJ/s input) | G28: 134000 | H28: 121000 | I28: 109000 | J28: 98000 | K28: 107000 | L28: 127000 | M28: 69000 | N28: 115000 | O28: F | P28: 5
F30: Fixed O&M (€/MJ/s input / year) | G30: 11800 | H30: 10600 | I30: 9500 | J30: 8600 | K30: 9400 | L30: 11200 | M30: 6000 | N30: 10100 | P30: 2
F31: - of which fixed O&M costs upgrading and methane reduction, excl. el. (€/MJ/s input / year) | G31: 8400 | H31: 7600 | I31: 6800 | J31: 6100 | K31: 6700 | L31: 8000 | M31: 4300 | N31: 7200 | P31: 2
F32: - of which fixed O&M costs grid injection, excl. el. (€/MJ/s input / year) | G32: 3400 | H32: 3000 | I32: 2700 | J32: 2500 | K32: 2700 | L32: 3200 | M32: 1700 | N32: 2900 | O32: H | P32: 2
F33: Variable O&M ((€/GJ input) | G33: 0.9299955422 | H33: 1.025239608 | I33: 0.884390672 | J33: 1.022968907 | O33: H
F34: - of which electricity (€/GJ input) | G34: 0.9299955422 | H34: 1.025239608 | I34: 0.884390672 | J34: 1.022968907 | O34: E | P34: 2/4/7
F36: Technology specific data
F37: Methane slip / emission (%) | G37: 0.01 | H37: 0.01 | I37: 0.001 | J37: 0.001 | O37: I | P37: 2
F38: Minimum load (% of full load) | G38: 50 | P38: 7
F39: CO2 removal, % | G39: 98.5 | P39: 1
A45: References:
A46: 1 | B46: "Technology Data for Energy Plants – Generation of Electricity and District Heating, Energy Storage and Energy Carrier Generation and Conversion.", certain updates in October 2013, and January 2014, Danish Energy Agency, May 2012.
A47: 2 | B47: Biogas upgrading – Review of commercial technologies. SGC Rapport 2013:270. SGC, 2013 | F47: "Biogas upgrading – Review of commercial technologies", SGC Rapport 2013:270, SGC, 2013 .
A48: 4 | B48: "Biogas upgrading technologies – developments and innovations, Task 37 – Energy from biogas and landfill gas". IEA Bioenergy, 2009.
A49: 5 | B49: ”Anvendelse af biogas til el- og varmeproduktion”, Ea Energianalyse, 2014.
A50: 7 | B50: ”Introduktion til produktion af biometan fra biogas”, Biometan Regioner, 2013.
A52: Notes:
A53: A | B53: Corresponding to 1.000 Nm3 biogas input, assuming a methane content of the raw biogas of 60% and an average gross conversion efficiency of approx. 98,5%.
A54: B | B54: Values are assumed valid for a range 500-1,500 Nm3 biomethane per hour
A55: C | B55: Values include upgrading, methane reduction and grid injection facilities
A56: D | B56: Based on a water-scrubber technology based plant, alternative technologies have comparable values in terms of total upgrading costs. For a plant of double capacity (2000 Nm3/h) the realtive price is expected to be 20-25% lower [1,3]
A57: E | B57: The cost of auxiliary electricity consumption is calculated using the following electricity prices in €/MWh: 2015: 63, 2020: 69, 2030: 101, 2050: 117. These prices include production costs and transport tariffs, but not any taxes or subsidies for renewable energy.
A58: F | B58: Injection in natural gas grid at 40 bar
A59: G | B59: Based on a lower calorfic value of 36 MJ/Nm3 and 8760 hours per year
A60: H | F60: O&M costs are estimated to 2.5% of investment per year, in accodance with [2]
A61: I | F61: Assuming that, by 2030, methane slip can be reduced to levels seen today for amin scrubbing technology. Methane slip is assumed to be the same as waste gas assuming that the plant is not equipped with a regenerative thermal oxidation (RTO) plant. If the the off-gas from the upgrading plant is treated with a regenerative thermal oxidation (RTO) plant the methane slip can be eliminated.
A62: J | F62: Assuming that, by 2030, one or more of the newer and currently less developled technologies (e.g. cryogenic and membrane technologies) will take over.
F63: This can lead to a 50% reduction of the electricity consumption, which is already achievable today with the amine scrubbing technology.
A65: References:
A66: 1 | F66: “Biogas upgrading – Technical review, Energiforsk report 2016:275, Energiforsk AB, 2016.
A67: 2 | F67: “Biogas upgrading – Review of commercial technologies”, SGC Rapport 2013:270, SGC, 2013.
A68: 4 | F68: “Biogas upgrading technologies – developments and innovations. Task 37 – Energy from biogas and landfill gas”, Petersson & Wellinger, IEA Bioenergy, 2009.
A69: 5 | F69: ”Anvendelse af biogas til el- og varmeproduktion”, Ea Energianalyse, 2014.
A70: 7 | F70: ”Introduktion til produktion af biometan fra biogas”, Biometan Regioner, 2013.

Sheet 83 Gasif. Fixed Bed, Producer
B1: Technology | C1: Gasifier, biomass, producer gas, small - medium scale
B3: Technology | C3: =C1 -> Gasifier, biomass, producer gas, small - medium scale
C4: 2015 | D4: 2020 | E4: 2030 | F4: 2050 | G4: Uncertainty (2020) | I4: Uncertainty (2050) | K4: Note | L4: Ref.
B5: Energy/technical data | G5: Lower | H5: Upper | I5: Lower | J5: Upper
B6: Typical fuel input capacity, one unit (MWth) | C6: 20 | D6: 20 | E6: 20 | F6: 20 | K6: A | L6: 1,2,8
B8: - Input
B9: Biomass (% of input capacity) | C9: 98 | D9: 98 | E9: 98 | F9: 98
B10: Electricity (% of input capacity) | C10: 2 | D10: 2 | E10: 2 | F10: 2
B12: - Output
B13: Producer gas (% of fuel input) | C13: 74 | D13: 75 | E13: 77 | F13: 83 | G13: 60 | H13: 80 | I13: 80 | J13: 90 | K13: C | L13: 3,4,5,8,11
B14: Heat (% of input) | C14: 10 | D14: 10 | E14: 9 | F14: 5 | K14: B | L14: 3,4,5,8,11
B16: Unplanned outage (%) | C16: 5 | D16: 5 | E16: 5 | F16: 5 | L16: 1,2,8
B17: Planned outage (weeks per year) | C17: 3 | D17: 3 | E17: 3 | F17: 3 | L17: 1,2,8
B18: Technical lifetime (years) | C18: 20 | D18: 20 | E18: 20 | F18: 20 | L18: 1,2,8
B19: Construction time (years) | C19: 1.5 | D19: 1.5 | E19: 1.5 | F19: 1.5 | L19: 1,2,8
B21: Financial data
B22: Specific investment (M€/MWth) | C22: 1.4 | D22: 1.3 | E22: 1.2 | F22: 1.1 | G22: 0.9 | H22: 1.8 | I22: 0.7 | J22: 1.4 | K22: D | L22: 1,3,4,5
B23: - of which equipment | C23: -
B24: - of which installation | C24: -
B25: Fixed O&M (€/MWth/year) | C25: 21000 | D25: 20000 | E25: 18000 | F25: 16200 | G25: 15000 | H25: 24900 | I25: 12100 | J25: 20200 | K25: D | L25: 1,3,4,5
B26: Variable O&M (€/MWhth) | C26: 2.6 | D26: 2.5 | E26: 2.2 | F26: 2 | G26: 1.7 | H26: 3.3 | I26: 1.4 | J26: 2.7 | K26: D | L26: 1,3,4,5
B28: Technology specific data
B29: Minimum load (% of full load) | C29: 20 | D29: 20 | E29: 20 | F29: 20 | L29: 8
A31: References:
A33: [18] | B33: “Handbook Biomass Gasification”, Edited by H.A.M. Knoef, BTG biomass technology group, 2005.
A34: 3 | B34: IEA Task 32, Workshop State of the art technologies for small biomass co-generation, 2010
A35: 4 | B35: http://www.volund.dk/Biomass_energy/Technologies/Gasification_of_biomass
A36: 5 | B36: BioSynergi, telefonkontakt Henrik Houman
A39: Notes:
A40: A | B40: The stated capacity is the upper range, down scaling is possible.
A41: B | B41: With flue gas condensation, considering lower heating value of biomass fuel.
A42: C | B42: Producer gas primarily consists of the components N2, H2, CO, CO2, CH4, and water. Calorific value 5 - 6 MJ/Nm3. For some references ([3], [4]) the electric efficincy has been used to calculate gasifier efficiencies, assuming an engine efficiency of 42%.
A43: D | B43: Fixed bed gasifiers are usually integrated with an internal combustion gas engine gen-set. Sources are for total project including gas engine and the engine part has been deducted at 1.33 M€/Mwe and 42% efficiency. It is assumed that the accumulated production capacity will increase by 40 % between 2015 and 2020, double between 2020 and 2030 and between 2030 and 2050. A learning curve progress rate of 90 % is assumed this yields a 5 % decrease in investment costs between 2015 and 2020, 10 % reduction between 2020 and 2030 and between 2030 and 2050. Similar progress ratios have been used for O&M costs.
A44: E | B44: The values in [9] have been used (sh. 85) but adjusted to keep overall yearly O&M costs at 3% of investment
A45: F | B45: The values in [9] have been used. Variable O&M for a Staged down draft gasifier (sh. 85) have been subtracted O&M of a gas engine (sh. 06).
A46: G | B46: Efficiencies are expected to improve gradually from presently demonstrated levels, to cold gas efficiencies of 85% in 2050. It is assumed that a total efficiency of 90% can be obtained in 2050.

Sheet 84 Gasif. CFB, Bio-SNG
B1: Technology | C1: CFB (Circulating fluid bed) gasifiers , biomass, bio-SNG, medium - large scale
B3: Technology | C3: Gasifier, biomass, bio-SNG, medium - large scale
C4: 2015 | D4: 2020 | E4: 2030 | F4: 2050 | G4: Uncertainty (2020) | I4: Uncertainty (2050) | K4: Note | L4: Ref
B5: Energy/technical data | G5: Lower | H5: Upper | I5: Lower | J5: Upper
B6: Typical fuel input capacity, one unit (MWth) | C6: 32 | D6: 154 | E6: 400 | F6: 400 | L6: 12;13
B8: - Input | K8: B
B9: Biomass (% of input capacity) | C9: 91 | D9: 100 | E9: 100 | F9: 100
B10: Electricity (% of input capacity) | C10: 9 | D10: 0 | E10: 0 | F10: 0 | K10: B
B12: - Output | K12: B
B13: Bio SNG (% of fuel input) | C13: 56 | D13: 60 | E13: 63 | F13: 70 | G13: 58 | H13: 65 | I13: 65 | J13: 75 | K13: G | L13: 21;19;13/17/19;
B14: Heat (% of input) | C14: 15 | D14: 20 | E14: 22 | F14: 20 | K14: H | L14: 21;19;13/17/19;
B16: Unplanned outage (%) | C16: 3 | D16: 3 | E16: 3 | F16: 3
B17: Planned outage (weeks per year) | C17: 3 | D17: 3 | E17: 3 | F17: 3
B18: Technical lifetime (years) | C18: 15 | D18: 20 | E18: 20 | F18: 20
B19: Construction time (years) | C19: 2.5 | D19: 2.5 | E19: 2.5 | F19: 2.5
B21: Financial data
B22: Specific investment (M€/MWth) | C22: 4 | D22: 2.5 | E22: 1.6 | F22: 1.5 | G22: 1.8 | H22: 3 | I22: 1.4 | J22: 2.6 | K22: E | L22: 12+21;12+19+13;15/17
B23: - of which equipment | C23: -
B24: - of which installation | C24: -
B25: Fixed O&M (€/MWth/year) | C25: 80500 | D25: 40200 | E25: 26200 | F25: 24100 | G25: 30200 | H25: 50300 | I25: 18100 | J25: 30200 | K25: F | L25: 12/21;12/21+13/17/19
B26: Variable O&M (€/MWhth) | C26: 5.3 | D26: 2.7 | E26: 1.7 | F26: 1.6 | G26: 1.8 | H26: 3.5 | I26: 1.1 | J26: 2.1 | K26: F | L26: 12/21;12/21+13/17/19
B28: Technology specific data
B29: Warm start-up time (hours) | C29: 6 | D29: 6 | E29: 6 | F29: 6 | K29: C
B30: Cold start-up time (hours) | C30: 12 | D30: 12 | E30: 12 | F30: 12 | K30: C
B32: Environment
B33: NOX (g per GJ fuel) | C33: 16 | D33: 20 | E33: 20 | F33: 20 | K33: D | L33: 23, 29
B34: CH4 (g per GJ fuel) | C34: 0 | D34: 0 | E34: 0 | F34: 0 | K34: D | L34: 29
B35: N2O (g per GJ fuel) | C35: 0.3 | D35: 1 | E35: 1 | F35: 0 | K35: D | L35: 23, 29
A36: References:
A37: 1 | B37: Commissioning of the GoBiGas 20 MW biomethane plant. Thuman 2015
A38: 2 | B38: Forgasning – Fase 2. Økonomi, videnindhentning og samarbejde. DGC Februar 2012.
A39: 3 | B39: Gassner & Marechal, 2012
A40: 4 | B40: Bio2G - A full scale reference plant in Sweden for production of bio-SNG, E.ON (Möller) 2013.
A41: 5 | B41: Tunå & Hulteberg, 2014.
A42: 6 | B42: Force, Technology data for advanced bioenergy fuels, 2013
A43: Notes:
A44: A | B44: With flue gas condensation
A45: B | B45: Generally the plants' electricity generation is assumed to balance the consumption
A46: C | B46: Assumed to be in the same magnitude as a coal fired power plant
A47: D | B47: 2015 data for NOX and N2O origin from [23]. Other values are assumed to be in the same magnitude as a biomass fired PF power plant (pellets)
A48: E | B48: For 2015, values reflect the 20 MWgas Swedish GoBiGas Phase 1 demonstration project. A proportionality factor of 0.7 is assumed to apply when going from 2015 to 2020 based on the anticipated upscaling from 20 MWgas to 100 MWgas [21]. For 2030, the figure is an average of a value from theoretical studies [17] multiplied by 1.4 and a value from feasibility studies [19] multiplied by 1.15. From 2030 to 2050 simply a reduction of 10% has been assumed to reflect a learning curve.
A49: F | B49: Assumed that the total O&M costs splits in 1/3 variable, 2/3 fixed costs, 8000 h/year
A50: G | B50: Efficiencies are expected to improve gradually from presently demonstrated level, to values corresponding to various studies for large plants in 2030, and gradual increase to 2050. It is assumed that a total efficiency of 90% can be obtained.
A51: H | B51: Heat at normal district heating temprature set 80/50 deg. Additional low temperature heat for heat pumps is possible. For uncertainty values, a higher heat output can be expected at low gas output and vice versa.

Sheet 85 Gasif. Ent. Flow FT, Bio Di
B1: Technology | C1: Gasifier, biomass, Fischer Tropsch biodiesel, large scale
B3: Technology | C3: Gasifier, biomass, Fischer Tropsch biodiesel, large scale
C4: 2015 | D4: 2020 | E4: 2030 | F4: 2050 | G4: Uncertainty (2020) | I4: Uncertainty (2050) | K4: Note | L4: Ref
B5: Energy/technical data | G5: Lower | H5: Upper | I5: Lower | J5: Upper
B6: Typical fuel input capacity, one unit (MWth) | C6: N/A | D6: 500 | E6: 1000 | F6: 1000 | K6: A | L6: 25/26
B8: - Input
B9: Biomass (% of input capacity) | D9: 100 | E9: 100 | F9: 100 | L9: 25, 26
B10: Electricity (% of input capacity) | D10: 0 | E10: 0 | F10: 0 | K10: B
B12: - Output | K12: B
B13: Bio Diesel (% of fuel input) | D13: 45 | E13: 50 | F13: 55 | G13: 46 | H13: 55 | I13: 50 | J13: 57 | K13: G | L13: 13+17; 13+17+26/9
B14: Heat (% of input) | D14: 30 | E14: 35 | F14: 35 | K14: H | L14: 13+17; 13+17
B16: Unplanned outage (weeks per year) | D16: 3 | E16: 3 | F16: 3
B17: Planned outage (weeks per year) | D17: 3 | E17: 3 | F17: 3 | K17: C
B18: Technical lifetime (years) | D18: 20 | E18: 20 | F18: 20
B19: Construction time (years) | D19: 2.5 | E19: 2.5 | F19: 2.5
B21: Financial data
B22: Specific investment (M€/MWth) | D22: 2.5 | E22: 2.1 | F22: 1.9 | G22: 1.9 | H22: 3.2 | I22: 1.1 | J22: 2.3 | K22: E | L22: 13+17; 13+17+26/9
B23: - of which equipment | C23: -
B24: - of which installation | C24: -
B25: Fixed O&M (€/MWth/year) | D25: 52900 | E25: 43600 | F25: 39200 | G25: 39700 | H25: 66200 | I25: 29400 | J25: 49000 | K25: F | L25: 13+17; 13+16+17
B26: Variable O&M (€/MWhth) | D26: 1 | E26: 0.8 | F26: 0.7 | G26: 0.6 | H26: 1.3 | I26: 0.5 | J26: 0.9 | K26: F | L26: 13+17; 13+16+17
A28: References:
A29: 1 | B29: Force, Technology data for advanced bioenergy fuels, 2013
A30: 2 | B30: Tunå & Hulteberg, 2014)
A31: 3 | B31: Boerrigter, 2006
A32: 4 | B32: IPT Biosyngas project Brazil, 2012
A33: 5 | B33: Biomass-to-liquids by the Fischer Tropsch process, Rytter et. Al 2013
A35: Notes:
A36: A | B36: Very limited demonstration of the technology presently exists. Uncerties are generally high.
A37: B | B37: Generally the plants' electricity generation is assumed to balance the consumption. Output of gasoline is counted as biodisesel
A38: C | B38: Assumed to be in the same magnitude as a coal fired power plant
A39: D | B39: Assumed to be in the same magnitude as a biomasse fired PF plant
A40: E | B40: For 2020, the figure is an average of values from theoretical studies [17], [27] adjusted for inflation and multiplied by 1.4. A scale effect with a proportionality factor of 0.72 has been assumed for projecting from 2020 to 2030. From 2030 to 2050 simply a reduction of 10% has been assumed to reflect a learning curve.
A41: F | B41: It is assumed that the total O&M costs splits in 1/3 variable, 2/3 fixed costs, 8000 h/year and that the O&M costs follow the decrease in ivestment costs
A42: G | B42: Efficiencies are based on various studies for large plants. Expected to increase gradually. It is assumed that a total efficiency of 90% can be obtained.
A43: H | B43: Heat at normal district heating temprature set 80/50 deg. Additional low temperature heat for heat pumps is possible. For uncertainty values, a higher heat output can be expected at low biodiesel output and vice versa.
E59: 0

Sheet 86 SOEC
H1: Back to Index
B2: Technology | C2: SOEC (Solid Oxide Electrolyzer Cell)
C3: 2015 | D3: 2020 | E3: 2030 | F3: 2050 | G3: Uncertainty (2020) | I3: Uncertainty (2050) | K3: Note | L3: Ref
G4: Lower | H4: Upper | I4: Lower | J4: Upper
B5: Energy/technical data
B6: Typical total plant size (MW input) | C6: 0.25 | D6: 1 | E6: 15 | F6: 50 | K6: A
B8: Inputs
B9: A) Electricity input (% total size) | C9: 85 | D9: 85 | E9: 85 | F9: 85 | K9: A | L9: 7, 18
B10: B) Heat input (% total size) | C10: 15 | D10: 15 | E10: 15 | F10: 15 | K10: A | L10: 7, 18
B11: Outputs
B12: A) Hydrogen output (% total size) | C12: 68 | D12: 76 | E12: 79 | F12: 79 | G12: =D12-D12*0.05 -> 72.2 | H12: =D12+D12*0.05 -> 79.8 | I12: =F12-F12*0.05 -> 75.05 | J12: =F12+F12*0.05 -> 82.95 | K12: B | L12: 1, *
B13: B) Heat output (% total size) | C13: 3 | D13: 3 | E13: 1.5 | F13: 1.5 | K13: C
B15: Forced outage (%)
B16: Planned outage (weeks per year)
B17: Technical lifetime (years) | C17: NA | D17: 20 | E17: 20 | F17: 30
B18: Construction time (years) | C18: 0.5 | D18: 0.5 | E18: 0.5 | F18: 0.5 | K18: F
B20: Financial data
B21: DTU conservative estimate
B22: Specific investment (M€-2015 per MW input) | C22: NA | D22: 2.2 | E22: 0.6 | F22: 0.4 | G22: 1.35 | H22: 3 | I22: 0.25 | J22: 1.5 | K22: G | L22: 4, 5, 6, 7, 11,13,14
B23: - hereof equipment (%) | C23: NA | D23: 45 | E23: 37 | F23: 35 | K23: H, I
B24: - hereof installation (%) | C24: NA | D24: 55 | E24: 63 | F24: 65 | K24: J
B25: Fixed O&M (€-2015 per MW input per year) | C25: NA | D25: =0.03*(D22*10^6) -> 66000 | E25: =0.03*(E22*10^6) -> 18000 | F25: 12000 | G25: =0.02*(D22*10^6) -> 44000 | H25: =0.05*(D22*10^6) -> 110000 | I25: =0.02*(F22*10^6) -> 8000 | J25: =0.05*(F22*10^6) -> 20000 | K25: K, L | L25: 10, 13
B26: Variable O&M (€-2015 per MWh input) | C26: 0 | D26: 0 | E26: 0 | F26: 0
B28: Technology specific data
B29: Operating temperature (degC) | C29: 775 | D29: 750 | E29: 675 | F29: 650 | K29: D, E | L29: 1, 2
B30: Stack lifetime (years) | D30: 5 | E30: 7 | F30: 10
B31: Ramp up time, linear to full load (minutes) | C31: 1 | D31: 1 | E31: 1 | F31: 1
B32: Ramp down time, linear to full load (minutes) | C32: 1 | D32: 1 | E32: 1 | F32: 1
B33: Start-up time (minutes) | C33: 60 | D33: 60
B35: Notes:
A36: A | B36: A plant operating in thermoneutral mode is assumed. Heat input for vaporizing the water is assumed and electricity for the remaining input [7]. The heat supplied to an unpressurized stack should be >100C. For a stack pressurized at 5 bar the heat should be supplied at >150C.
A37: B | B37: It is assumed that the best operating strategy is to maintain efficiency throughout the lifetime and to compensate the small resistance increase occurring over the lifetime of the stack by reducing the production rate. The drop in production capacity can be reduced by allowing operation at increased temperature towards the end of life of the stacks.
A38: C | B38: If the supplied water to the SOEC is in the form of steam at 150°C the electrical efficiency of electrolysis is increased by approximately ~17% (relative). This is relevant since waste heat at this temperature would be available, e.g. if the electrolysis is run together with a methanation or a methanol plant.
A39: D | B39: Most of the ohmic heat created in the stack will be consumed by the electrolysis reaction, which is endothermic. By running the SOEC stack very close to thermo-neutral voltage only little heat can be extracted. The value for 2015 is predicted after communication with Haldor Topose.
A40: E | B40: Increasing temperature may be necessary during operation in order to circumvent decreasing production rate due to degradation. In general the preferred operation temperature is expected to go down as technology improves towards 2050.
A41: F | B41: For 250kW module construction time (stack production, mounting) is approximately 6 months (Sunfire: Danilo Schimanke, date: 22/01-2015).
A42: G | B42: The turnkey price is made from estimates of the following cost factors; SOEC stack, heat exchangers, blower, pump, piping, electronics, delivery, land, contingency, contractors, legal fees, construction, engineering, yard improvements, buildings, electrics, piping, instrumentation and installation and grid connection (as described in ref 13), using the same assumptions that are detailed in reference [9]. Additionally, estimates from [10] and [17] are considered as well. The cost associated with grid connection is assumed to be 0.05 k€/kW [6]. Due to the uncertainties related to overcoming the technical challenges in the short to medium term, and the uncertainty regarding the market and related economy of scale effects, the central price estimate for 2030 is higher than described in ref 13, namely, 1.0 million EUR/MW, which is in lign with the projection from ref 17.
A43: H | B43: The SOEC stack costs predicted here are based on the detailed cost assessments of SOFC modules reported in references [4,5]. It has been documented that SOEC’s can run at much higher power density compared to SOFC’s. Here it is assumed that the SOEC stacks can be operated at four times the power density used for SOFC in the reference material [4,5] and a production volume between 5 and 10 MW/year in 2020, that increases 25 times to between 100 and 250 MW/year in 2050. This gives a SOEC stack cost of 376 €/kW in 2020, 43 €/kW in 2030 and 36 €/kW in 2050, where the dominating price reduction factor, between 2020 and 2050, comes from mass production of the stacks.
A44: I | B44: From the turnkey price the following expenses are included in the equipment cost: SOEC stack, heat exchangers, blower, pump, piping, electronics and delivery.
A45: J | B45: The expenses not included in the equipment price are included in the installation cost, that is: land, contingency, contractors, legal fees, construction, engineering, yard improvements, buildings, electrics, piping, instrumentation and installation and grid connection.
A46: K | B46: The O&M is assumed to be 3% of the turnkey price per year. Included in this number is the replacement cost of SOEC stacks which is less than 1% of the turnkey price per year of the assumed lifetime of the system. A O&M cost of 2% and 5% is assumed for lower and upper uncertainty, respectively.
A47: L | B47: The O&M cost is composed of 5%, 2% and 1.64% of the turnkey price per year for a plant size of 1 MW, 15 MW and 50 MW respectively [13], in addition to the cost of exchanging stacks over the technical lifetime of the plant.
B49: References:
A50: [1] | B50: Partnerskabet for brint og brændselsceller, Elektrolyse i Danmark, 2009
A51: [2] | B51: SOEC Roadmap Steam electrolysis, version 0.5, 2012 http://www.hydrogennet.dk/fileadmin/user_upload/PDF-filer/Partnerskabet/Strategier/SOEC-roadmap_steam_electrolysis_Final1.pdf
A52: [3] | B52: SOEC Roadmap Co- electrolysis, version 0.5, 2012 http://www.hydrogennet.dk/fileadmin/user_upload/PDF-filer/Partnerskabet/Strategier/SOEC-roadmap-co_electrolysis_Final1.pdf
A53: [4] | B53: Fuel Cell and Hydrogen Joint Undertaking: “Multi – Annual Work Plan 2014-2020”, adopted 2014-06-30
A54: [5] | B54: Thijssen, J. The Impact of Scale-Up and Production Volume on SOFC Manufacturing cost, National Energy Technology Laboratory and the US Department of Energy (DOE) 2007
A55: [6] | B55: Thijssen, J. Natural Gas-Fueled Distributed Generation Solid Oxide Fuel Cell Systems, US Department of Energy, National Energy Technology Laboratory, and RDS 2009.
A56: [7] | B56: TECHNOLOGY DATA FOR HIGH TEMPERATURE SOLID OXIDE ELECTROLYSER CELLS, ALKALI AND PEM ELECTROLYSERS, Aalborg University, 2013, Brian Vad Mathiesen et al.
A57: [8] | B57: Claus Friis Pedersen, Haldor Topsøe A/S, Personal communication.
A58: [9] | B58: "Capital cost scaling methodology - quality guidelines for energy systems studies" (National Energy Technology Laboratory, US, 2013)
A59: [10] | B59: S. L. Ebbehøj, Integration of CO2 air capture and solid oxide electrolysis for methane production, 2015, DTU Energy, Technical University of Denmark.
A60: [13] | B60: Mýrdal J.S.G., Hendriksen P.V., Graves C., Jensen S.H. and Nielsen E.R., DTU Energy, Technical University of Denmark, October 2016. “Predicting the price of solid oxide electrolysers (SOECs)“
A61: [14] | B61: "Technology Roadmap - Hydrogen and Fuel Cells", 2015, International Energy Agency*
A62: [17] | B62: "Development of Water Electrolysis in the European Union", 2014, E4tech with Element Energy Ltd. for the Fuel Cells and Hydrogen Joint Undertaking
A63: [18] | B63: Lasse Røngaard Clausen and Peter Vang Hendriksen, DTU, Personal communication.
B64: An asterisk in the reference indicate high uncertainty or "guesstimate", where more certain data where not available

Sheet 87 PEM Electrolyser
H1: Back to Index
B2: Technology | C2: LT PEM EC (Low Temperature Proton Exchange Membrane Electrolyser Cell )
C3: 2015 | D3: 2020 | E3: 2030 | F3: 2050 | G3: Uncertainty (2020) | I3: Uncertainty (2050) | K3: Note | L3: Ref
G4: Lower | H4: Upper | I4: Lower | J4: Upper
B5: Energy/technical data
B6: Typical total plant size (MWe) | C6: 1 | D6: 10 | E6: 10 | F6: 10 | K6: A | L6: 4, 5, 6, 7, 8
B8: Inputs
B9: A) Electricity input (% total size) | C9: 100 | D9: 100 | E9: 100 | F9: 100
B10: Outputs
B11: A) Hydrogen output (% total size) (LHV) | C11: 54 | D11: 58 | E11: 62 | F11: 67 | G11: 55 | H11: 60 | I11: 63 | J11: 72 | K11: B, C, K | L11: 14, 15
B12: B) Heat output (% total size) | E12: 12 | F12: 10 | K12: D
B14: Forced outage (%)
B15: Planned outage (weeks per year)
B16: Technical lifetime (years) | C16: 15 | D16: 15 | E16: 15 | F16: 15
B17: Construction time (years) | C17: 0.5 | D17: 0.5 | E17: 0.5 | F17: 0.5
B19: Financial data
B20: Specific investment (M€-2015 per MWe) | C20: 1.9 | D20: 1.1 | E20: 0.6 | F20: 0.4 | G20: 0.8 | H20: 1.5 | I20: 0.2 | J20: 0.8 | K20: E, F
B21: - hereof equipment (%) | C21: =1.6/C20*100 -> 84.21052632 | D21: 75 | E21: 67 | F21: 50 | K21: F | L21: 1
B22: - hereof installation (%) | C22: =100-C21 -> 15.78947368 | D22: 25 | E22: 33 | F22: 50
B23: Fixed O&M (€-2015 per MWe a year) | C23: =C20*0.05*1000000 -> 95000 | D23: 55000 | E23: 30000 | F23: 20000 | G23: 40000 | H23: 75000 | I23: 10000 | J23: 40000 | K23: G, B | L23: 15
B24: Variable O&M (€-2015 per MWel) | C24: 0 | D24: 0 | E24: 0 | F24: 0 | G24: 0 | H24: 0 | I24: 0 | J24: 0 | K24: B
B26: Technology specific data
B27: Operating temperature | C27: 67 | D27: 80 | E27: 85 | F27: 90 | K27: H
B28: Ramp up time, linear to full load (minutes) | C28: 1 | D28: 0.03 | E28: 0.01 | F28: 0.01
B29: Ramp down time, linear to full load (minutes) | C29: 0.02 | D29: 0.02 | E29: 0.02 | F29: 0.02 | K29: I
B30: Start-up time (minutes) | C30: 5 | D30: 0.5 | E30: 0.15 | F30: 0.15 | K30: J
B32: Notes:
A33: A | B33: The stack size is expected to be up to 1.5 MWe by 2020
A34: B | B34: O&M cost are estimated to be 5 % of investment cost in accordance with [15]. It has not been possible to distribute O&M cost between fixed and variable elements. All O&M costs are therefore allocated to fixed cost which are assumed to be dominating.
A35: C | B35: LHV considered (10,797.05 kJ/Nm3)
A36: D | B36: The waste heat is presently not utilised in large commercial systems, but IRD has proven that it is possible to utilise the waste heat in a simple design. The 2030 and 2050 numbers are estimates based on the average hydrogen production lifetime efficiencies. Improvements in efficiency will entail less waste heat to utilise. Values specified are for the beginning of the lifetime
A37: E | B37: Cost estimates and uncertainties are based on the review of different literature sources in the technology description, section: Prediction of cost and performance.
A38: F | B38: Incl. power supply, system control, gas drying (purity above 99.4%); excl. grid connection, external compression, external purification and hydrogen storage. Central values are listed (2050 is estimated); although the range is rather large
A39: G | B39: Including stack exchange cost
A40: H | B40: Operational temperature and heat utilization temperature. The 2015 operational temperature is informed by Proton-On-Site 2013
A41: I | B41: 2014: Proven by IRD for a µPEMEC system
A42: J | B42: Cold start-up time is approx. 5 minutes for state of the art plants today. Future expectations are based on [20]
A43: K | B43: Uncertainties for efficiencies based on [14] and [15]
B45: References:
A46: [1] | B46: Bertuccioli, L; Chan, A; Hart, D; Lehner, F; Madden, B & Standen, E (2014): Development of Water Electrolysis in the European Union. Final report. Available on-line at http://www.fch-ju.eu/sites/default/files/study%20electrolyser_0-Logos_0.pdf
A47: [4] | B47: Arico A. S., Briguglio N., Siracusano S. et al., 2013: Polymer electrolyte membrane water electrolysis: status of technologies and potential applications in combination with renewable power sources. Journal of Applied Electrochemistry 43 (2) 107-118
A48: [5] | B48: 2015: PEMEC is available in various sizes ranging from 0.00011 MWe to +1 MWe, cf. Ref.5-8
A49: [6] | B49: Protonon site, http://protononsite.com/, 2013
A50: [7] | B50: Itm-power, http://www.itm-power.com/products/, 2013
A51: [8] | B51: http://www.ceth.fr/products-PEM-electrolyser.php, 2013
A52: [14] | B52: Mathiesen Brian Vad et al., Aalborg University, 2013, "TECHNOLOGY DATA FOR HIGH TEMPERATURE SOLID OXIDE ELECTROLYSER CELLS, ALKALI AND PEM ELECTROLYSERS"
A53: [15] | B53: International Energy Agency, 2015, "Technology Roadmap - Hydrogen and Fuel Cells"
A54: [20] | B54: New Energy World,, 2014. FUEL CELLS AND HYDROGEN JOINT UNDERTAKING (FCH JU) Multi - Annual Work Plan 2014 - 2020. Adopted by the FCH2 JU Governing Board on 30/06/2014, http://www.fch.europa.eu/sites/default/files/documents/FCH2%20JU%20-%20Multi%20Annual%20Work%20Plan%20-%20MAWP_en_0.pdf , accessed 26-09-2017
A55: * | B55: An asterisk in the reference indicate high uncertainty or "guesstimate", where more certain data where not available

Sheet 88 Alkaline Electrolyser
H1: Back to Index
B2: Technology | C2: AEC - Alkaline Electrolyser
C3: 2015 | D3: 2020 | E3: 2030 | F3: 2050 | G3: Uncertainty (2020) | I3: Uncertainty (2050) | K3: Note | L3: Ref
G4: Lower | H4: Upper | I4: Lower | J4: Upper
B5: Energy/technical data
B6: Typical total plant size (MWe) | C6: 10 | D6: 10 | E6: 10 | F6: 10 | K6: A | L6: 1, 2
B8: Inputs
B9: A) Electricity input (% total size) | C9: 100 | D9: 100 | E9: 100 | F9: 100
B10: Outputs
B11: A) Hydrogen output (% total size), at LHV | C11: 61.2 | D11: 63.6 | E11: 65.9 | F11: 69.2 | G11: 62 | H11: 65 | I11: 66 | J11: 70 | K11: D | L11: 1, 3, 4
B12: B) Heat output (% total size) | C12: 0 | D12: 14 | E12: 12 | F12: 8
B14: Forced outage (%)
B15: Planned outage (weeks per year)
B16: Technical lifetime (years) | C16: 25 | D16: 25 | E16: 25 | F16: 25
B17: Construction time (years) | C17: 0.5 | D17: 0.5 | E17: 0.5 | F17: 0.5
B19: Financial data
B20: Specific investment (M€-2015 per MWe) | C20: 1.07 | D20: 0.6 | E20: 0.55 | F20: 0.5 | G20: 0.4 | H20: 0.8 | I20: 0.35 | J20: 0.7 | K20: B, E | L20: 1, 4
B21: - hereof equipment (%) | C21: 66 | D21: 63 | E21: 73 | F21: 77 | L21: 1, 3
B22: - hereof installation (%) | C22: 34 | D22: 37 | E22: 27 | F22: 23 | L22: 1
B23: Fixed O&M (€-2015 per MWe a year) | C23: =C20*0.05*1000000 -> 53500 | D23: 30000 | E23: 27500 | F23: 25000 | G23: 20000 | H23: 40000 | I23: 17500 | J23: 35000 | K23: B, C
B24: Variable O&M (€-2015 per MWe) | C24: 0 | D24: 0 | E24: 0 | F24: 0 | K24: C
B26: Technology specific data
B27: Operating temperature | C27: 80 | D27: 80 | E27: 80 | F27: 80 | L27: 2
B28: Ramp up time, linear to full load (minutes) | C28: 8 | D28: 8 | E28: 0.5 | F28: 0.5 | K28: F
B29: Ramp down time, linear to full load (minutes) | C29: 8 | D29: 8 | E29: 0.08 | F29: 0.08 | K29: F
B32: Notes:
A33: A | B33: Since electricity is the only input, the typical capacity plant size can be equally referred to as MJ/s or MWe
A34: B | B34: Considering the recent drop in observed prices we consider a price of 0.6 mill EUR/MWe realistic for a medium scale plant (10 MW) by 2020 including installation and grid connection. Only a moderate cost reduction is assumed thereafter. For large scale electrolysers cost may be lower.
A35: C | B35: O&M cost are estimated to be 5 % of investment cost in accordance with [7]
A36: D | B36: Efficiencies at lower heating value (LHV). Efficiencies for 2015 and 2020 are based on a commercial atmospherics system from NEL according to [7]. Efficiencies for 2030 and 2050 are based on expectations from GreenHydrogen according to [7]. Uncertainties for efficiencies estimated from [4] and the concepts mentioned in "Example of market standard technology".
A37: E | B37: E Uncertainties for specific investments estimated from the concepts mentioned in "Example of market standard technology" and [5] for 2050.
A38: F | B38: Ramping data for 2015 and 2020 are based on a commercial atmospherics system from NEL according to [7]. Ramping data for 2030 and 2050 are based on expectations from GreenHydrogen according to [7], assuming the electrolysers are pressurised. Uncertainties for efficiencies estimated from [4] and the concepts mentioned in "Example of market standard technology".
B40: References:
A41: [1] | B41: DGC Customer report December 2013, Update of technology data for energy plants; page 12
A42: [2] | B42: Nel-hydrogen.com
A43: [3] | B43: Study on development of water electrolysis in the EU February 2014
A44: [4] | B44: Mathiesen Brian Vad et al., Aalborg University, 2013, "TECHNOLOGY DATA FOR HIGH TEMPERATURE SOLID OXIDE ELECTROLYSER CELLS, ALKALI AND PEM ELECTROLYSERS"
A45: [5] | B45: International Energy Agency, 2015, "Technology Roadmap - Hydrogen and Fuel Cells"
A46: [6] | B46: DNV KEMA Energy & Sustainability; Systems Analyses Power to Gas – Deliverable 1: Technology Review, June 2013
A47: [7] | B47: Technology Data for Hydrogen Technologies”. Prepared as part of the project “Analysis for Commercialization of Hydrogen Technologies” under the Danish Energy Technology Development and Demonstration Program (EUDP) (Ea Energianalyse, 2016).
A48: * | B48: An asterisk in the reference indicate high uncertainty or "guesstimate", where more certain data where not available

Sheet 89 Vegetable oil FAME
H1: Back to Index
B2: Technology | C2: Vegetable Oil FAME
C3: 2015 | D3: 2020 | E3: 2030 | F3: 2040 | G3: 2050 | H3: Uncertainty (2020) | J3: Uncertainty (2050) | L3: Note | M3: Ref
H4: Lower | I4: Upper | J4: Lower | K4: Upper
B5: Energy/technical data
B6: Typical total plant size 1,000 t biodiesel/year | C6: 100 | D6: 100 | E6: 100 | F6: 100 | G6: 100 | H6: 0.5 | I6: 2 | J6: 0.5 | K6: 2 | L6: A | M6: 1
B7: Typical total plant size MW biodiesel | C7: 125 | D7: 125 | E7: 125 | F7: 125 | G7: 125 | H7: 0.5 | I7: 2 | J7: 0.5 | K7: 2 | L7: A1
B8: Inputs
B9: Veg Oil Consumption, MWh/MWh Total Input | C9: 0.925 | D9: 0.926 | E9: 0.929 | F9: 0.931 | G9: 0.933 | H9: 0.99 | I9: 1.01 | J9: 0.99 | K9: 1.01 | L9: E,I | M9: 4
B10: Methanol Consumption, MWh/MWh Total Input | C10: 0.046 | D10: 0.046 | E10: 0.046 | F10: 0.046 | G10: 0.046 | H10: 0.93 | I10: 1.07 | J10: 0.93 | K10: 1.07 | L10: B,E,I | M10: 4
B11: Electricity Consumption, MWh/MWh Total Input | C11: 0.004 | D11: 0.004 | E11: 0.003 | F11: 0.0025 | G11: 0.002 | H11: 0.5 | I11: 1.5 | J11: 0.75 | K11: 1.25 | L11: E,I | M11: 4
B12: Natural Gas Consumption, MWh/MWh Total Input | C12: 0.025 | D12: 0.024 | E12: 0.022 | F12: 0.02 | G12: 0.018 | H12: 0.5 | I12: 1.5 | J12: 0.75 | K12: 1.25 | L12: E,I | M12: 4
B13: Outputs
B14: Biodiesel Output, MWh/MWh Total Input | C14: 0.903 | D14: 0.903 | E14: 0.903 | F14: 0.903 | G14: 0.903 | H14: 0.99 | I14: 1.01 | J14: 0.99 | K14: 1.01 | L14: F | M14: 4
B15: Glycerine Output, MWh/MWh Total Input | C15: 0.039 | D15: 0.039 | E15: 0.039 | F15: 0.039 | G15: 0.039 | H15: 0.99 | I15: 1.01 | J15: 0.99 | K15: 1.01 | L15: F | M15: 4
B17: Forced outage (%) | C17: 0 | D17: 0 | E17: 0 | F17: 0 | G17: 0 | L17: H
B18: Planned outage (weeks per year) | C18: 2 | D18: 2 | E18: 2 | F18: 2 | G18: 2
B19: Technical lifetime (years) | C19: 25 | D19: 25 | E19: 25 | F19: 25 | G19: 25
B20: Construction time (years) | C20: 1.5 | D20: 1.5 | E20: 1.5 | F20: 1.5 | G20: 1.5
B21: Financial data
B22: Specific investment (M € /MW) | C22: =C31/1.25 -> 0.512 | D22: =D31/1.25 -> 0.504 | E22: 0.496 | F22: 0.49 | G22: =G31/1.25 -> 0.48 | H22: 0.9 | I22: 1.1 | J22: 0.9 | K22: 1.1 | L22: C, J, L
B23: - equipment (%) | C23: 75 | D23: 75 | E23: 75 | F23: 75 | G23: 75 | L23: G
B24: - installation (%) | C24: 25 | D24: 25 | E24: 25 | F24: 25 | G24: 25 | L24: G
B25: Fixed O&M (M € /MW/year) | C25: 0.0176 | D25: 0.0176 | E25: 0.0176 | F25: 0.0176 | G25: 0.0176 | H25: 0.9 | I25: 1.1 | J25: 0.9 | K25: 1.1 | L25: D, K, L
B26: Variable O&M (€ /MWh) | C26: 6.77 | D26: 6.77 | E26: 6.77 | F26: 6.77 | G26: 6.77 | H26: 0.9 | I26: 1.1 | J26: 0.9 | K26: 1.1 | L26: D, K, L
B27: Start-up (M € /MW) | C27: 0 | D27: 0 | E27: 0 | F27: 0 | G27: 0
B28: Technology specific data
B29: Specific energy content (GJ/ton) biodiesel) | C29: 37.2 | D29: 37.2 | E29: 37.2 | F29: 37.2 | G29: 37.2
B30: Specific density (kg/l) or (ton/m3) | C30: 0.885 | D30: 0.885 | E30: 0.885 | F30: 0.885 | G30: 0.885
B31: Specific investment (M € /1,000 t biodiesel/year) | C31: 0.64 | D31: 0.63 | E31: 0.62 | F31: 0.61 | G31: 0.6 | H31: 0.9 | I31: 1.1 | J31: 0.9 | K31: 1.1 | L31: C, J
B32: - equipment (%) | C32: 75 | D32: 75 | E32: 75 | F32: 75 | G32: 75 | L32: G
B33: - installation (%) | C33: 25 | D33: 25 | E33: 25 | F33: 25 | G33: 25 | L33: G
B34: Fixed O&M (M € /1,000 t biodiesel) | C34: 0.022 | D34: 0.022 | E34: 0.022 | F34: 0.022 | G34: 0.022 | H34: 0.9 | I34: 1.1 | J34: 0.9 | K34: 1.1 | L34: D, K, L
B35: Variable O&M (M € /1,000 t biodiesel) | C35: 0.07 | D35: 0.07 | E35: 0.07 | F35: 0.07 | G35: 0.07 | H35: 0.9 | I35: 1.1 | J35: 0.9 | K35: 1.1 | L35: D, K, L
B38: Notes:
B39: A. The plant size is assumed based on the plants sizes of existing vegetable oil based bio-diesel plants in EU.
B40: A1. This value is the hourly rating and has been calculated as if the unit produces 100,000 t/year and was in operations 8,000 h/year.
B41: B. Energy input from supporting chemicals of minor amounts is not considered.
B42: C. The total capital cost include total installed cost (total direct costs) and all indirect costs such as engineering, construction, contractor’s fee, contingency and working capital.
B43: D. O&M costs, costs for main raw materials are not included
B44: E. 2050 values are based on industry best plant in 2015. 2020 and 2030 values interpolated between 2015 and 2050 values.
B45: F. Total output excludes the heat loss.
B46: G. Estimated from Iowa State biodiesel profitability file.
B47: H. Best plants operate at greater than 95% of capacity.
B48: I. The uncertainty is one standard deviation from the average from the NBB survey.
B49: J. Range of capital cost is +/- 25% of mean.
B50: K. Operating cost is +/- 10% of mean.
B51: L. M €/k tonne is million euro per 1,000 tonnes
B53: References
B54: [1] Personal Communication. 2018. T Jensen, Emmelev A/S
B55: [2] International Institute for Sustainable Development. 2012. Biofuels – At What Cost? Mandating ethanol and biodiesel consumption in Germany. https://www.iisd.org/gsi/sites/default/files/bf_awc_germany.pdf
B56: [3] Desmet Ballestra. 2015. Biodiesel. http://www.desmetballestra.com/images/PDF-Brochures-2014/Biodiesel2015.pdf
B57: [4] US Energy Information Administration. 2015. International Energy Statistics. Biofuels Production. http://www.eia.gov/cfapps/ipdbproject/IEDIndex3.cfm?tid=79&pid=79&aid=1
B58: [5] Energy Statistics 2015. https://ens.dk/sites/ens.dk/files/Statistik/energy_statistics_2015.pdf
B59: [6] IEA Bioenergy Task 39. Newsletter #39. Denmark Feature. http://task39.sites.olt.ubc.ca/files/2015/06/IEA-Bioenergy-Task-39-Newsletter-Issue-39-May-2015-final.pdf
B60: [7] Chen, R., Qin, Z., Han, J., Wang, M., Taheripour, F., Tyner, W., O'Connor, D., Duffield, J. 2018. Life cycle energy and greenhouse gas emission effects of biodiesel in the United States with induced land use change impacts. Bioresource Technology, Volume 251, 2018, Pages 249-258, ISSN 0960-8524, https://doi.org/10.1016/j.biortech.2017.12.031.
B61: [8] Cargill. 2017. Cargill to build state of- the-art biodiesel plant in Wichita, Kansas. https://www.cargill.com/2017/cargill-to-build-state-of-the-art-biodiesel-plant-in-wichita-ks
B62: [9] IRENA. 2013. Road Transport: The Cost of Renewable Solutions. http://www.irena.org/-/media/Files/IRENA/Agency/Publication/2013/Road_Transport.ashx
B63: [10] Berghout, Niels. (2008). Technological learning in the German biodiesel industry: An experience curve approach to quantify reductions in production costs, energy use and greenhouse gas emissions. http://task39.sites.olt.ubc.ca/files/2013/05/Technological-learning-in-the-German-Biodiesel-Industry.pdf
B64: [11] Iowa State University. 2017. Biodiesel Profitability. http://www.extension.iastate.edu/agdm/energy/xls/d1-15biodieselprofitability.xlsx

Sheet 90 UCO & animal fat FAME
H1: Back to Index
B2: Technology | C2: UCO and Animal Fat FAME
C3: 2015 | D3: 2020 | E3: 2030 | F3: 2040 | G3: 2050 | H3: Uncertainty (2020) | J3: Uncertainty (2050) | L3: Note | M3: Ref
H4: Lower | I4: Upper | J4: Lower | K4: Upper
B5: Energy/technical data
B6: Typical total plant size 1,000 t biodiesel/year | C6: 50 | D6: 50 | E6: 50 | F6: 50 | G6: 50 | H6: 0.5 | I6: 2 | J6: 0.5 | K6: 2 | L6: A | M6: 1
B7: Typical total plant size MW biodiesel/year | C7: 60 | D7: 60 | E7: 60 | F7: 60 | G7: 60 | H7: 0.5 | I7: 2 | J7: 0.5 | K7: 2 | L7: A1
B8: Inputs
B9: Veg Oil Consumption, MWh/MWh Total Input | C9: 0.906 | D9: 0.909 | E9: 0.912 | F9: 0.912 | G9: 0.912 | H9: 0.99 | I9: 1.01 | J9: 0.99 | K9: 1.01 | L9: E,I | M9: 1
B10: Methanol Consumption, MWh/MWh Total Input | C10: 0.044 | D10: 0.044 | E10: 0.044 | F10: 0.044 | G10: 0.044 | H10: 0.93 | I10: 1.07 | J10: 0.93 | K10: 1.07 | L10: B,E,I | M10: 1
B11: Electricity Consumption, MWh/MWh Total Input | C11: 0.007 | D11: 0.006 | E11: 0.005 | F11: 0.005 | G11: 0.004 | H11: 0.5 | I11: 1.5 | J11: 0.5 | K11: 1.5 | L11: E,I | M11: 1
B12: Natural Gas Consumption, MWh/MWh Total Input | C12: 0.044 | D12: 0.04 | E12: 0.036 | F12: 0.034 | G12: 0.032 | H12: 0.5 | I12: 0.5 | J12: 0.5 | K12: 0.5 | L12: E,I | M12: 1
B13: Outputs
B14: Biodiesel Output, MWH/MWh | C14: 0.84 | D14: 0.85 | E14: 0.86 | F14: 0.86 | G14: 0.87 | H14: 0.99 | I14: 1.01 | J14: 0.99 | K14: 1.01 | L14: F | M14: 1
B15: Glycerine Output, MWH/MWh Total Input | C15: 0.04 | D15: 0.04 | E15: 0.04 | F15: 0.04 | G15: 0.04 | H15: 0.99 | I15: 1.01 | J15: 0.99 | K15: 1.01 | L15: F | M15: 1
B17: Forced outage (%) | C17: 0 | D17: 0 | E17: 0 | F17: 0 | G17: 0 | L17: H
B18: Planned outage (weeks per year) | C18: 2 | D18: 2 | E18: 2 | F18: 2 | G18: 2
B19: Technical lifetime (years) | C19: 25 | D19: 25 | E19: 25 | F19: 25 | G19: 25
B20: Construction time (years) | C20: 1.5 | D20: 1.5 | E20: 1.5 | F20: 1.5 | G20: 1.5
B21: Financial data
B22: Specific investment (M € /MW) | C22: 1.081152641 | D22: 1.016120903 | E22: 0.934831231 | F22: 0.8941863949 | G22: 0.84 | H22: 0.8 | I22: 1.2 | J22: 0.9 | K22: 1.1 | L22: C, J, L | M22: 3
B23: - equipment (%) | C23: 75 | D23: 75 | E23: 75 | F23: 75 | G23: 75 | L23: G
B24: - installation (%) | C24: 25 | D24: 25 | E24: 25 | F24: 25 | G24: 25 | L24: G
B25: Fixed O&M (M € /MW/year) | C25: 0.1224105461 | D25: 0.1224105461 | E25: 0.1224105461 | F25: 0.1224105461 | G25: 0.1224105461 | H25: 0.9 | I25: 1.1 | J25: 0.9 | K25: 1.1 | L25: D, K, L | M25: 4
B26: Variable O&M (€ /MWh) | C26: 7.654394752 | D26: 7.654394752 | E26: 7.654394752 | F26: 7.654394752 | G26: 7.654394752 | H26: 0.9 | I26: 1.1 | J26: 0.9 | K26: 1.1 | L26: D, K, L | M26: 4
B27: Start-up (M € /MW) | C27: 0 | D27: 0 | E27: 0 | F27: 0 | G27: 0
B28: Technology specific data
B29: Specific energy content (GJ/ton) biodiesel) | C29: 37.2 | D29: 37.2 | E29: 37.2 | F29: 37.2 | G29: 37.2
B30: Specific density (kg/l) or (ton/m3) | C30: 0.885 | D30: 0.885 | E30: 0.885 | F30: 0.885 | G30: 0.885
B31: Specific investment (M € /1,000 t biodiesel/year) | C31: 1.33 | D31: 1.25 | E31: 1.15 | F31: 1.1 | G31: 1 | H31: 0.8 | I31: 1.2 | J31: 0.9 | K31: 1.1
B32: - equipment (%) | C32: 75 | D32: 75 | E32: 75 | F32: 75 | G32: 75 | L32: G
B33: - installation (%) | C33: 25 | D33: 25 | E33: 25 | F33: 25 | G33: 25 | L33: G
B34: Fixed O&M (M € /1,000 t biodiesel) | C34: 0.1468926554 | D34: 0.1468926554 | E34: 0.1468926554 | F34: 0.1468926554 | G34: 0.1468926554 | H34: 0.9 | I34: 1.1 | J34: 0.9 | K34: 1.1 | L34: D, K, L
B35: Variable O&M (M € /1,000 t biodiesel) | C35: 0.0790960452 | D35: 0.0790960452 | E35: 0.0790960452 | F35: 0.0790960452 | G35: 0.0790960452 | H35: 0.9 | I35: 1.1 | J35: 0.9 | K35: 1.1 | L35: D, K, L
B37: Notes:
B38: A. The plant size is assumed based on the plants sizes of existing vegetable oil based bio-diesel plants in EU.
B39: A1. This value is the hourly rating and has been calculated as if the unit produces 100,000 t/year and was in operations 8,000 h/year.
B40: B. Energy input from supporting chemicals of minor amounts is not considered.
B41: C. The total capital cost include total installed cost (total direct costs) and all indirect costs such as engineering, construction, contractor’s fee, contingency and working capital.
B42: D. O&M costs, costs for main raw materials are not included
B43: E. 2050 values are based on industry best plant in 2015. 2020 and 2030 values interpolated between 2015 and 2050 values.
B44: F. Total output excludes the heat loss.
B45: G. Estimated from Iowa State biodiesel profitability file.
B46: H. Best plants operate at greater than 95% of capacity.
B47: I. The uncertainty is one standard deviation from the average from the NBB survey.
B48: J. Range of capital cost is +/- 25% of mean.
B49: K. Operating cost is +/- 10% of mean.
B50: L. M €/k tonne is million euro per 1,000 tonnes
B52: References
B53: [1] Personal Communication. 2018. T Jensen, Emmelev A/S
B54: [2] International Institute for Sustainable Development. 2012. Biofuels – At What Cost? Mandating ethanol and biodiesel consumption in Germany. https://www.iisd.org/gsi/sites/default/files/bf_awc_germany.pdf
B55: [3] Desmet Ballestra. 2015. Biodiesel. http://www.desmetballestra.com/images/PDF-Brochures-2014/Biodiesel2015.pdf
B56: [4] US Energy Information Administration. 2015. International Energy Statistics. Biofuels Production. http://www.eia.gov/cfapps/ipdbproject/IEDIndex3.cfm?tid=79&pid=79&aid=1
B57: [5] Energy Statistics 2015. https://ens.dk/sites/ens.dk/files/Statistik/energy_statistics_2015.pdf
B58: [6] IEA Bioenergy Task 39. Newsletter #39. Denmark Feature. http://task39.sites.olt.ubc.ca/files/2015/06/IEA-Bioenergy-Task-39-Newsletter-Issue-39-May-2015-final.pdf
B59: [7] Chen, R., Qin, Z., Han, J., Wang, M., Taheripour, F., Tyner, W., O'Connor, D., Duffield, J. 2018. Life cycle energy and greenhouse gas emission effects of biodiesel in the United States with induced land use change impacts. Bioresource Technology, Volume 251, 2018, Pages 249-258, ISSN 0960-8524, https://doi.org/10.1016/j.biortech.2017.12.031.
B60: [8] Cargill. 2017. Cargill to build state of- the-art biodiesel plant in Wichita, Kansas. https://www.cargill.com/2017/cargill-to-build-state-of-the-art-biodiesel-plant-in-wichita-ks
B61: [9] IRENA. 2013. Road Transport: The Cost of Renewable Solutions. http://www.irena.org/-/media/Files/IRENA/Agency/Publication/2013/Road_Transport.ashx
B62: [10] Berghout, Niels. (2008). Technological learning in the German biodiesel industry: An experience curve approach to quantify reductions in production costs, energy use and greenhouse gas emissions. http://task39.sites.olt.ubc.ca/files/2013/05/Technological-learning-in-the-German-Biodiesel-Industry.pdf
B63: [11] Iowa State University. 2017. Biodiesel Profitability. http://www.extension.iastate.edu/agdm/energy/xls/d1-15biodieselprofitability.xlsx

Sheet 91 Hydrogenated veg oil
H1: Back to Index
B2: Technology | C2: HVO / renwable diesel
C3: 2015 | D3: 2020 | E3: 2030 | F3: 2040 | G3: 2050 | H3: Uncertainty (2020) | J3: Uncertainty (2050) | L3: Note | M3: Ref
H4: Lower | I4: Upper | J4: Lower | K4: Upper
B5: Energy/technical data
B6: Typical total plant size 1,000 t HVO/year | C6: 500 | D6: 500 | E6: 750 | F6: 850 | G6: 1000 | H6: 0.5 | I6: 2 | J6: 0.5 | K6: 1 | L6: A, B
B7: Typical total plant size MW HVO | C7: 730 | D7: 730 | E7: 1100 | F7: 1250 | G7: 1460 | H7: 0.5 | I7: 2 | J7: 0.5 | K7: 1 | L7: A, A1, B
B8: Inputs
B9: Feedstock Consumption, MWh/MWh Total Inputs | C9: 0.881 | D9: 0.881 | E9: 0.881 | F9: 0.881 | G9: 0.881 | H9: 0.99 | I9: 1.01 | J9: 0.99 | K9: 1.01 | L9: C | M9: 3,4,11
B10: Hydrogen Consumption, MWh/MWh Total Inputs | C10: 0.105 | D10: 0.105 | E10: 0.105 | F10: 0.105 | G10: 0.105 | H10: 0.93 | I10: 1.07 | J10: 0.93 | K10: 1.07 | L10: C, D | M10: 3,4,11
B11: Electricity Consumption, MWh/MWh Total Inputs | C11: 0.008 | D11: 0.008 | E11: 0.008 | F11: 0.008 | G11: 0.008 | H11: 0.5 | I11: 1.5 | J11: 0.5 | K11: 1.5 | L11: C | M11: 3,4,11
B12: Natural Gas Consumption, MWh/MWh Total Inputs | C12: 0.007 | D12: 0.007 | E12: 0.007 | F12: 0.007 | G12: 0.007 | H12: 0.5 | I12: 0.5 | J12: 0.5 | K12: 0.5 | L12: C | M12: 3,4,11
B13: Outputs
B14: HVO Output, MWh/MWh Total Input | C14: 0.85 | D14: 0.85 | E14: 0.85 | F14: 0.85 | G14: 0.85 | H14: 0.99 | I14: 1.01 | J14: 0.99 | K14: 1.01 | L14: C, H
B15: Naphta Output, MWh/MWh Total Input | C15: 0.066 | D15: 0.066 | E15: 0.066 | F15: 0.066 | G15: 0.066 | H15: 0.99 | I15: 1.01 | J15: 0.99 | K15: 1.01 | L15: C, H
B16: Fuel Gas Output, MWh/MWh Total Input | C16: 0.033 | D16: 0.033 | E16: 0.033 | F16: 0.033 | G16: 0.033 | H16: 0.99 | I16: 1.01 | J16: 0.99 | K16: 1.01 | L16: C, H
B17: LPG Output, MWh/MWh Total Input | C17: 0.0275 | D17: 0.0275 | E17: 0.0275 | F17: 0.0275 | G17: 0.0275 | H17: 0.99 | I17: 1.01 | J17: 0.99 | K17: 1.01 | L17: C, H
B18: District Heating Output, MWh/MWh Total input | C18: =0.0237*0.15 -> 0.003555 | D18: =0.0237*0.15 -> 0.003555 | E18: 0.003555 | F18: 0.003555 | G18: 0.003555 | H18: 0.99 | I18: 1.01 | J18: 0.99 | K18: 1.01 | L18: C, H
B20: Forced outage (%) | C20: 0 | D20: 0 | E20: 0 | F20: 0 | G20: 0 | L20: I
B21: Planned outage (weeks per year) | C21: 2 | D21: 2 | E21: 2 | F21: 2 | G21: 2 | M21: 7
B22: Technical lifetime (years) | C22: 25 | D22: 25 | E22: 25 | F22: 25 | G22: 25
B23: Construction time (years) | C23: 2 | D23: 2 | E23: 2 | F23: 2 | G23: 2
B24: Financial data
B25: Specific investment (M € /MW) | C25: 0.7649884362 | D25: 0.7560932218 | E25: 0.6375442739 | F25: 0.5984 | G25: 0.5781889344 | H25: 0.9 | I25: 1.1 | J25: 0.9 | K25: 1.1 | L25: E, J, L | M25: 10, 12
B26: - equipment (%) | C26: 75 | D26: 75 | E26: 75 | F26: 75 | G26: 75
B27: -installation (%) | C27: 25 | D27: 25 | E27: 25 | F27: 25 | G27: 25
B28: Fixed O&M (M € /MW/year) | C28: 0.0355808575 | D28: 0.0355808575 | E28: 0.03541912633 | F28: 0.03532467532 | G28: 0.0355808575 | H28: 0.9 | I28: 1.1 | J28: 0.9 | K28: 1.1 | L28: F, K, L | M28: 7
B29: Variable O&M (€ /MWh) | C29: 8.481246754 | D29: 8.481246754 | E29: 8.481246754 | F29: 8.481246754 | G29: 8.481246754 | H29: 0.9 | I29: 1.1 | J29: 0.9 | K29: 1.1 | L29: F, K, L | M29: 7
B30: Startup (M € /MW) | C30: 0 | D30: 0 | E30: 0 | F30: 0 | G30: 0
B31: Technology specific data
B32: Specific energy content (GJ/ton) | C32: 44.1 | D32: 44.1 | E32: 44.1 | F32: 44.1 | G32: 44.1
B33: Specific density (kg/l) or (ton/m3) | C33: 0.77 | D33: 0.77 | E33: 0.77 | F33: 0.77 | G33: 0.77
B34: Specific investment (M € /1,000 t HVO) | C34: 1.116883117 | D34: 1.103896104 | E34: 0.9350649351 | F34: 0.88 | G34: 0.8441558442 | H34: 0.9 | I34: 1.1 | J34: 0.9 | K34: 1.1 | L34: E, J, L | M34: 10, 12
B35: - equipment (%) | C35: 75 | D35: 75 | E35: 75 | F35: 75 | G35: 75
B36: -installation (%) | C36: 25 | D36: 25 | E36: 25 | F36: 25 | G36: 25
B37: Fixed O&M (M € /1,000 t HVO) | C37: 0.05194805195 | D37: 0.05194805195 | E37: 0.05194805195 | F37: 0.05194805195 | G37: 0.05194805195 | H37: 0.9 | I37: 1.1 | J37: 0.9 | K37: 1.1 | L37: F, K, L | M37: 7
B38: Variable O&M (M € /1,000 t HVO) | C38: 0.1038961039 | D38: 0.1038961039 | E38: 0.1038961039 | F38: 0.1038961039 | G38: 0.1038961039 | H38: 0.9 | I38: 1.1 | J38: 0.9 | K38: 1.1 | L38: F, K, L | M38: 7
B39: Startup (M € /1,000 t HVO) | C39: 0 | D39: 0 | E39: 0 | F39: 0 | G39: 0
B41: Notes:
B42: A. The plant size is assumed based on the plants sizes of existing HVO plants.
B43: A1. This value is the hourly rating and has been calculated as if the unit produces at capacity and was in operations 8,000 h/year.
B44: B. The plant size uncertainty represents the current range in the market.
B45: C. Performance is typical based on public data and confidential data reviewed by (S&T)2 Consultants Inc.
B46: D. Hydrogen consumption is also a function of the feedstock to a small degree.
B47: E. The total capital cost include total installed cost (total direct costs) and all indirect costs such as engineering, construction, contractor’s fee, contingency and working capital.
B48: F. O&M costs, costs for main raw materials are not included.
B49: G. There is limited potential for process improvements.
B50: H. Total output excludes the heat loss.
B51: I. Best plants operate at greater than 95% of capacity.
B52: J. Range of capital cost is +/- 25% of mean.
B53: K. Operating cost uncertainty is +/- 10% of mean.
B54: L. M €/k tonne is million euro per 1,000 tonnes
B56: References
B57: [1] Neste. 2013. North American Tallow Pathway Description. https://www.arb.ca.gov/fuels/lcfs/2a2b/apps/nes-na-tallow-rpt-011414.pdf
B58: [2] US EPA. 2017. EPA Approval for REG Geismar. https://www.epa.gov/sites/production/files/2017-05/documents/reg-geismar-deter-ltr-2017-04-13.pdf
B59: [3] Kalnes, T et al. 2012. Green diesel production by hydrorefining renewable feedstocks. https://www.uop.com/wp-content/uploads/2012/12/UOP-Hydrorefining-Green-Diesel-Tech-Paper.pdf
B60: [4] de Jong, S., Hoefnagels, R., Faaij, A., Slade, R., Mawhood, R. and Junginger, M. 2015. The feasibility of short-term production strategies for renewable jet fuels – a comprehensive techno-economic comparison. Biofuels, Bioprod. Bioref., 9: 778–800. https://www.doi.org/10.1002/bbb.1613
B61: [5] Neste Financial Statements. https://www.neste.com/en/corporate-info/investors/financials
B62: [6] US Energy Information Administration. New York Harbour ULSD Price. https://www.eia.gov/dnav/pet/pet_pri_spt_s1_d.htm
B63: [7] Iowa State University. 2017. Biodiesel Profitability. http://www.extension.iastate.edu/agdm/energy/xls/d1-15biodieselprofitability.xlsx
B64: [8] Rogelio Sotelo-Boyás, Fernando Trejo-Zárraga and Felipe de Jesús Hernández-Loyo (2012). Hydroconversion of Triglycerides into Green Liquid Fuels, Hydrogenation, Prof. Iyad Karamé (Ed.), InTech, DOI: 10.5772/48710. Available from: https://www.intechopen.com/books/hydrogenation/hydroconversion-of-triglycerides-into-green-liquid-fuels
B65: [9] Tao, L., Milbrandt, A., Zhang, Y. and Wang, W. 2017. Techno-economic and resource analysis of hydroprocessed renewable jet fuel. Biotechnology for Biofuels 2017 10:261. https://doi.org/10.1186/s13068-017-0945-3
B66: [10] Miller, P., Kumar, A. 2014. Techno-economic assessment of hydrogenation-derived renewable diesel production from canola and camelina, In Sustainable Energy Technologies and Assessments, Volume 6, 2014, Pages 105-115, ISSN 2213-1388, https://doi.org/10.1016/j.seta.2014.01.008
B67: [11] Diamond Green Diesel. Press release. 2016. https://www.prnewswire.com/news-releases/diamond-green-diesel-to-be-expanded-to-275-million-gallons-annually-300248085.html
B68: [12] Neste Renewable Diesel Handbook. https://www.neste.com/sites/default/files/attachments/neste_renewable_diesel_handbook.pdf
B69: [13] Sub Group on Advanced Biofuels. 2017. Cost of Biofuel. http://platformduurzamebiobrandstoffen.nl/wp-content/uploads/2017/07/2017_SGAB_Cost-of-Biofuels.pdf

Sheet 92 HVO jet fuel
H1: Back to Index
B2: Technology | C2: HVO Jet Fuel
C3: 2015 | D3: 2020 | E3: 2030 | F3: 2040 | G3: 2050 | H3: Uncertainty (2020) | J3: Uncertainty (2050) | L3: Note | M3: Ref
H4: Lower | I4: Upper | J4: Lower | K4: Upper
B5: Energy/technical data
B6: Typical total plant size 1,000 t HVO/year | C6: 400 | D6: 400 | E6: 600 | F6: 700 | G6: 800 | H6: 0.5 | I6: 2 | J6: 0.5 | K6: 1 | L6: A, B
B7: Typical total plant size MW HVO | C7: 580 | D7: 580 | E7: 875 | F7: 1020 | G7: 1165 | H7: 0.5 | I7: 2 | J7: 0.5 | K7: 1 | L7: A, A1, B
B8: Inputs
B9: Feedstock Consumption, MWh/MWh Total Inputs | C9: 0.779 | D9: 0.779 | E9: 0.779 | F9: 0.779 | G9: 0.779 | H9: 0.9 | I9: 1.1 | J9: 0.9 | K9: 1.1 | L9: C, G | M9: 2,3
B10: Hydrogen Consumption, MWh/MWh Total Inputs | C10: 0.099 | D10: 0.099 | E10: 0.099 | F10: 0.099 | G10: 0.099 | H10: 0.9 | I10: 1.1 | J10: 0.9 | K10: 1.1 | L10: C,D, G | M10: 2,3
B11: Electricity Consumption, MWh/MWh Total Inputs | C11: 0.003 | D11: 0.003 | E11: 0.003 | F11: 0.003 | G11: 0.003 | H11: 0.9 | I11: 1.1 | J11: 0.9 | K11: 1.1 | L11: C, G | M11: 2,3
B12: Natural Gas Consumption, MWh/MWh Total Inputs | C12: 0.119 | D12: 0.119 | E12: 0.119 | F12: 0.119 | G12: 0.119 | H12: 0.9 | I12: 1.1 | J12: 0.9 | K12: 1.1 | L12: C, G | M12: 2,3
B13: Outputs
B14: HVO Jet Output, GJ/GJ Total Input | C14: 0.66 | D14: 0.66 | E14: 0.66 | F14: 0.66 | G14: 0.66 | H14: 0.9 | I14: 1.1 | J14: 0.9 | K14: 1.1 | L14: C, H
B15: Naphta Output, MWh/MWh Total Input | C15: 0.0651 | D15: 0.0651 | E15: 0.0651 | F15: 0.0651 | G15: 0.0651 | H15: 0.9 | I15: 1.1 | J15: 0.9 | K15: 1.1 | L15: C, H
B16: LPG Output, MWh/MWh Total Input | C16: 0.0924 | D16: 0.0924 | E16: 0.0924 | F16: 0.0924 | G16: 0.0924 | H16: 0.9 | I16: 1.1 | J16: 0.9 | K16: 1.1 | L16: C, H
B17: Fuel Gas Output, MWh/MWh Total Input | C17: 0.1 | D17: 0.1 | E17: 0.1 | F17: 0.1 | G17: 0.1 | H17: 0.9 | I17: 1.1 | J17: 0.9 | K17: 1.1 | L17: C, H
B18: District Heating Output, MWh/MWh Total input | C18: =0.177*0.15 -> 0.02655 | D18: 0.02655 | E18: 0.02655 | F18: 0.02655 | G18: 0.02655 | H18: 0.9 | I18: 1.1 | J18: 0.9 | K18: 1.1 | L18: C, H
B20: Forced outage (%) | C20: 0 | D20: 0 | E20: 0 | F20: 0 | G20: 0 | L20: I
B21: Planned outage (weeks per year) | C21: 2 | D21: 2 | E21: 2 | F21: 2 | G21: 2
B22: Technical lifetime (years) | C22: 25 | D22: 25 | E22: 25 | F22: 25 | G22: 25
B23: Construction time (years) | C23: 2 | D23: 2 | E23: 2 | F23: 2 | G23: 2
B24: Financial data
B25: Specific investment (M € /MW HVO Jet) | C25: 0.9583519928 | D25: 0.9583519928 | E25: 0.8103896104 | F25: 0.7549019608 | G25: 0.7134496405 | H25: 0.5 | I25: 1.5 | J25: 0.5 | K25: 1.5 | L25: A, E, J, L
B26: - equipment (%) | C26: 75 | D26: 75 | E26: 75 | F26: 75 | G26: 75
B27: -installation (%) | C27: 25 | D27: 25 | E27: 25 | F27: 25 | G27: 25
B28: Fixed O&M (M € /MW/year) | C28: 0.03582624272 | D28: 0.03582624272 | E28: 0.03562152134 | F28: 0.03565062389 | G28: 0.03567248202 | H28: 0.9 | I28: 1.1 | J28: 0.9 | K28: 1.1 | L28: F, K, L
B29: Variable O&M (€ /MWh) | C29: 8.500522315 | D29: 8.500522315 | E29: 8.500522315 | F29: 8.500522315 | G29: 8.500522315 | H29: 0.9 | I29: 1.1 | J29: 0.9 | K29: 1.1 | L29: F, K, L
B30: Start-up (M € /1,000 t HVO Jet) | C30: 0 | D30: 0 | E30: 0 | G30: 0
B31: Technology specific data
B32: Specific energy content (GJ/ton) | C32: 44 | D32: 44 | E32: 44 | F32: 44 | G32: 44
B33: Specific density (kg/l) or (ton/m3) | C33: 0.77 | D33: 0.77 | E33: 0.77 | F33: 0.77 | G33: 0.77
B34: Specific investment (M € /1000 t HVO Jet) | C34: 1.38961039 | D34: 1.38961039 | E34: 1.181818182 | F34: 1.1 | G34: 1.038961039 | H34: 0.5 | I34: 1.5 | J34: 0.5 | K34: 1.5 | L34: A, E, J, L
B35: -equipment (%) | C35: 75 | D35: 75 | E35: 75 | F35: 75 | G35: 75
B36: -installation (%) | C36: 25 | D36: 25 | E36: 25 | F36: 25 | G36: 25
B37: Fixed O&M (M € /1,000 t HVO) | C37: 0.05194805195 | D37: 0.05194805195 | E37: 0.05194805195 | F37: 0.05194805195 | G37: 0.05194805195 | H37: 0.9 | I37: 1.1 | J37: 0.9 | K37: 1.1 | L37: F, K, L
B38: Variable O&M (M € /1,000 t HVO) | C38: 0.1038961039 | D38: 0.1038961039 | E38: 0.1038961039 | F38: 0.1038961039 | G38: 0.1038961039 | H38: 0.9 | I38: 1.1 | J38: 0.9 | K38: 1.1 | L38: F, K, L
B39: Startup (M € /1,000 t HVO) | C39: 0 | D39: 0 | E39: 0 | F39: 0 | G39: 0
B41: Notes:
B42: A. The plant size is assumed based on the plants sizes of existing HVO plants. Jet production is 80% of HVO diesel production with the other 20% representing increased co-products.
B43: A1. This value is the hourly rating and has been calculated as if the unit produces at capacity and was in operations 8,000 h/year.
B44: B. The plant size uncertainty represents the current range in the market.
B45: C. Performance is typical based similar performance to HVO diesel but with less primary product and more co-products.
B46: D. Hydrogen consumption is also a function of the feedstock to a small degree.
B47: E. The total capital cost include total installed cost (total direct costs) and all indirect costs such as engineering, construction, contractor’s fee, contingency and working capital.
B48: F. O&M costs, costs for main raw materials are not included.
B49: G. There is limited potential for process improvements.
B50: H. Total output excludes the heat loss.
B51: I. Best plants operate at greater than 95% of capacity.
B52: J. Range of capital cost is +/- 25% of mean.
B53: K. Operating cost uncertainty is +/- 10% of mean.
B54: L. M €/k tonne is million euro per 1,000 tonnes.
B56: References
B57: [1] AltAir. 2017. The Department of Energy: Wet and Gaseous Feedstocks: Barriers and Opportunities. https://energy.gov/sites/prod/files/2017/07/f35/BETO_2017WTE-Workshop_BryanSherbacow-AltAir.pdf
B58: [2] Antonissen, K. 2016. Greenhouse gas performance of renewable jet fuel: a comparison of conversion pathways. https://dspace.library.uu.nl/bitstream/handle/1874/347665/MSc%20Thesis%20K.Y%20Antonissen%2c%20May%202016%20%281%29.pdf?sequence=2&isAllowed=y
B59: [3] de Jong, S., Antonissen, K., Hoefnagels, R., Lonza, L., Wang, M., Faaij, A., and Junginger, M. 2017. Life-cycle analysis of greenhouse gas emissions from renewable jet fuel production. Biotechnology for Biofuels201710:64. https://doi.org/10.1186/s13068-017-0739-7
B60: [4] Tao, L., Milbrandt, A., Zhang, Y., and Wang, W. 2017. Techno‑economic and resource analysis of hydroprocessed renewable jet fuel. Biotechnology for Biofuels. 10:261. https://doi.org/10.1186/s13068-017-0945-3
B61: [5] Starck, L., Pidol, L., Jeuland, N., Chapus, T., Bogers, P., Bauldreay, J. 2016. Production of Hydroprocessed Esters and Fatty Acids (HEFA) - Optimization of Process Yield. Oil Gas Sci. Technol. - Rev. IFP Energies nouvelles. Volume 71, Number 1, January-February 2016. https://doi.org/10.2516/ogst/2014007
B62: [6] Stratton et al. 2010. Life Cycle Greenhouse Gas Emissions from Alternative Jet Fuels. http://web.mit.edu/aeroastro/partner/reports/proj28/partner-proj28-2010-001.pdf
B63: [7] de Jong, S., Hoefnagels, R., Faaij, A., Slade, R., Mawhood, R. and Junginger, M. 2015. The feasibility of short-term production strategies for renewable jet fuels – a comprehensive techno-economic comparison. Biofuels, Bioprod. Bioref., 9: 778–800. https://www.doi.org/10.1002/bbb.1613

Sheet 93 1st generation ethanol
H1: Back to Index
B2: Technology | C2: 1st Generation Ethanol
C3: 2015 | D3: 2020 | E3: 2030 | F3: 2040 | G3: 2050 | H3: Uncertainty (2020) | J3: Uncertainty (2050) | L3: Note | M3: Ref
H4: Lower | I4: Upper | J4: Lower | K4: Upper
B5: Energy/technical data
B6: Ethanol/year, 1,000 tonnes/year | C6: 320 | D6: 320 | E6: 400 | F6: 450 | G6: 500 | H6: 0.5 | I6: 1.2 | J6: 0.6 | K6: 1 | L6: A, B | M6: 11
B7: Ethanol/year, MW | C7: 280 | D7: 280 | E7: 350 | F7: 400 | G7: 440 | H7: 0.5 | I7: 1.2 | J7: 0.6 | K7: 1 | L7: A, B
B8: Inputs
B9: Feedstock Consumption, MWh/MWh Total Input | C9: 0.83 | D9: 0.83 | E9: 0.84 | F9: 0.85 | G9: 0.85 | H9: 0.98 | I9: 1.05 | J9: 0.98 | K9: 1.02 | L9: C
B10: Electricity Consumption, MWh/MWh Total Input | C10: 0.02 | D10: 0.02 | E10: 0.02 | F10: 0.02 | G10: 0.02 | H10: 0.75 | I10: 1.25 | J10: 0.75 | K10: 1.25 | L10: D
B11: Natural Gas Consumption, MWh/MWh Total Input | C11: 0.15 | D11: 0.15 | E11: 0.14 | F11: 0.13 | G11: 0.13 | H11: 0.75 | I11: 1.25 | J11: 0.75 | K11: 1.25 | L11: D
B12: Outputs
B13: Ethanol Output, MWh/MWh Total Inputs | C13: 0.46 | D13: 46 | E13: 0.47 | F13: 0.47 | G13: 0.47 | H13: 0.95 | I13: 1.02 | J13: 0.95 | K13: 1.02 | L13: E, F
B14: DDG Output, MWh/MWh Total Input | C14: 0.29 | D14: 0.27 | E14: 0.28 | F14: 0.25 | G14: 0.25 | H14: 0.98 | I14: 1.05 | J14: 0.98 | K14: 1.02 | L14: E, F
B16: Forced outage (%) | C16: 0 | D16: 0 | E16: 0 | F16: 0 | G16: 0
B17: Planned outage (weeks per year) | C17: 2 | D17: 2 | E17: 2 | F17: 2 | G17: 2
B18: Technical lifetime (years) | C18: 25 | D18: 25 | E18: 25 | F18: 25 | G18: 25
B19: Construction time (years) | C19: 2 | D19: 2 | E19: 2 | F19: 2 | G19: 2
B20: Financial data
B21: Specific investment (M€ /MW Ethanol) | C21: 0.7377938517 | D21: 0.7233273056 | E21: 0.6943942134 | F21: 0.66375 | G21: 0.6616800921 | H21: 0.95 | I21: 1.25 | J21: 0.95 | K21: 1.25 | L21: I, J | M21: 10
B22: - equipment (%) | C22: 75 | D22: 75 | E22: 75 | F22: 75 | G22: 75
B23: -installation (%) | C23: 25 | D23: 25 | E23: 25 | F23: 25 | G23: 25
B24: Fixed O&M (M€ /MW/year) | C24: 0.06075949367 | D24: 0.06075949367 | E24: 0.06075949367 | F24: 0.06075949367 | G24: 0.06075949367 | H24: 0.95 | I24: 1.25 | J24: 0.95 | K24: 1.25 | L24: J | M24: 8
B25: Variable O&M (€ /MWh) | C25: 8.30071944 | D25: 8.30071944 | E25: 8.30071944 | F25: 8.30071944 | G25: 8.30071944 | H25: 0.9 | I25: 1.1 | J25: 0.9 | K25: 1.1 | L25: G, B, J | M25: 8
B26: Start-up (M€ /1,000 t Ethanol) | C26: 0 | D26: 0 | E26: 0 | F26: 0 | G26: 0 | L26: H
B27: Technology specific data
B28: Specific energy content (GJ/ton) | C28: 26.9 | D28: 26.9 | E28: 26.9 | F28: 26.9 | G28: 26.9
B29: Specific density (kg/l) or (ton/m3) | C29: 0.79 | D29: 0.79 | E29: 0.79 | F29: 0.79 | G29: 0.79
B30: Specific investment (M€ /1,000 t Ethanol) | C30: 0.6455696203 | D30: 0.6329113924 | E30: 0.6075949367 | F30: 0.59 | G30: 0.582278481 | H30: 0.95 | I30: 1.25 | J30: 0.95 | K30: 1.25 | L30: I, J | M30: 10
B31: - equipment (%) | C31: 75 | D31: 75 | E31: 75 | F31: 75 | G31: 75
B32: -installation (%) | C32: 25 | D32: 25 | E32: 25 | F32: 25 | G32: 25
B33: Fixed O&M (M€ /1,000 t Ethanol) | C33: 0.06075949367 | D33: 0.06075949367 | E33: 0.06075949367 | F33: 0.06075949367 | G33: 0.06075949367 | H33: 0.95 | I33: 1.25 | J33: 0.95 | K33: 1.25 | L33: J | M33: 8
B34: Variable O&M (M€ /1,000 t Ethanol) | C34: 0.06202531646 | D34: 0.06202531646 | E34: 0.06202531646 | F34: 0.06202531646 | G34: 0.06202531646 | H34: 0.9 | I34: 1.1 | J34: 0.9 | K34: 1.1 | L34: G, B, J | M34: 8
B35: Start-up (M€ /1,000 t Ethanol) | C35: 0 | D35: 0 | E35: 0 | F35: 0 | G35: 0 | L35: H
B37: Notes:
B38: A. The plant size is assumed based on the plants sizes of existing ethanol plants.
B39: A1. This value is the hourly rating and has been calculated as if the unit produces at capacity and was in operations 8,000 h/year.
B40: B. The plant size uncertainty represents the current range in the market.
B41: C. The feedstock starch content impacts the yield. Ethanol yields in the United States have been slowly increasing from a combination of improved conversion efficiency and higher starch content of the feedstock.
B42: D. The upper and lower values are representative of the range between individual plants.
B43: E. Output excludes the low quality waste heat.
B44: F. Change over time is a function of increased ethanol yield, which also results in lower DDG yield as the mass must be conserved.
B45: G. Variable costs are reduced from improved energy efficiency.
B46: H. Start-up costs are included on variable costs.
B47: I. Capital costs can be site specific and process technology supplier dependent. The costs provided for in the table are from a technology developer with a reputation for low capital costs.
B48: J. M €/k tonne is million euro per 1,000 tonnes
B50: References
B51: [1] (S&T)2 Consultants Inc. Database of actual plant performance.
B52: [2] Energy Statistics 2015. https://ens.dk/sites/ens.dk/files/Statistik/energy_statistics_2015.pdf
B53: [3] ePure. 2017. Fuel Blends. http://epure.org/about-ethanol/fuel-market/fuel-blends/
B54: [4] Biograce Version 4d without the extra 30% processing energy factor.
B55: [5] Hettinga, W., Junginger, H., Dekker S., Hoogwijk, M., McAloon, A., Hicks, K. 2009. Understanding the reductions in US corn ethanol production costs: An experience curve approach. Energy Policy 37(2009)190–203. http://naldc.nal.usda.gov/download/22550/PDF
B56: [6] IEA Bioenergy Task 39. 2009. Potential for Improving Carbon/Energy Balance of Bioethanol. http://task39.sites.olt.ubc.ca/files/2013/05/IEA_Bioenergy_Task-39_Improving_carbon_and_energy_balance.pdf
B57: [7] US Energy Information Administration. 2015. International Energy Statistics. Biofuels Production. http://www.eia.gov/cfapps/ipdbproject/IEDIndex3.cfm?tid=79&pid=79&aid=1
B58: [8] ePure. 2014. State of the Industry Report 2014. http://epure.org/media/1137/state-of-the-industry-report-2014.pdf
B59: [9] ePure. 2017. 2016 Industry Statistics. http://epure.org/media/1610/2016-industry-statistics.pdf
B60: [10] Iowa State University. 2017. Ethanol Profitability. http://www.extension.iastate.edu/agdm/energy/xls/d1-10ethanolprofitability.xlsx
B61: [11] Capital Journal. Oct. 10, 2017. Ringneck Energy pouring cement, building foundations for ethanol plant near Onida. http://www.capjournal.com/news/ringneck-energy-pouring-cement-building-foundations-for-ethanol-plant-near/article_4ee23aac-adec-11e7-80fb-a7814e744ba7.html
B62: [12] Biofuel Journal. 2017. Third Quarter. Construction begins. Page 40-42.
B63: [13] Ringneck Energy prospectus. 2016. http://ringneckenergy.com/wp-content/uploads/2016/12/2015_PPM_w_Exhibits.pdf

Sheet 94 Pyrolysis oils
H1: Back to Index
B2: Technology | C2: Fast Pyrolysis Bio Oil
C3: 2015 | D3: 2020 | E3: 2030 | F3: 2040 | G3: 2050 | H3: Uncertainty (2020) | J3: Uncertainty (2050) | L3: Note | M3: Ref
H4: Lower | I4: Upper | J4: Lower | K4: Upper
B5: Energy/technical data
B6: Typical total plant size 1,000 t Bio Oil/year | C6: 20 | D6: 80 | E6: 200 | F6: 500 | G6: 1000 | H6: 0.5 | I6: 1.25 | J6: 0.75 | K6: 1.25 | L6: A, B | M6: 1, 6
B7: Typical total plant size. MW | C7: 10 | D7: 40 | E7: 105 | F7: 265 | G7: 520 | H7: 0.5 | I7: 1.25 | J7: 0.75 | K7: 1.25 | L7: A, A1, B | M7: 1, 6
B8: Inputs
B9: Feedstock Consumption, MWh/MWh Total Input | C9: 1 | D9: 1 | E9: 1 | F9: 1 | G9: 1 | H9: 0.9 | I9: 1.5 | J9: 0.9 | K9: 1.25 | L9: E | M9: 4
B10: Outputs
B11: Bio Oil Output, MWh/MWh Total Input | C11: 0.6 | D11: 0.6 | E11: 0.62 | F11: 0.64 | G11: 0.65 | H11: 0.9 | I11: 1.1 | J11: 0.9 | K11: 1.1 | L11: E | M11: 4
B12: Steam, Output, MWh/MWh Total Input | C12: 0.232 | D12: 0.232 | E12: 0.232 | F12: 0.232 | G12: 0.232 | H12: 0.9 | I12: 1.1 | J12: 0.9 | K12: 1.1 | L12: E | M12: 4
B13: Power, Output, MWh/MWh Total Input | C13: 0.016 | D13: 0.016 | E13: 0.016 | F13: 0.016 | G13: 0.016 | H13: 0.9 | I13: 1.1 | J13: 0.9 | K13: 1.1 | L13: E | M13: 4
B15: Forced outage (%) | C15: n.a. | D15: 4 | E15: 0 | F15: 0 | G15: 0
B16: Planned outage (weeks per year) | C16: 4 | D16: 4 | E16: 4 | F16: 4 | G16: 4 | L16: C | M16: 8
B17: Technical lifetime (years) | C17: 25 | D17: 25 | E17: 25 | F17: 25 | G17: 25
B18: Construction time (years) | C18: 2 | D18: 2 | E18: 2 | F18: 2 | G18: 2
B19: Financial data
B20: Specific investment (M€ /MW Bio Oil) | C20: 2.4 | D20: 1.92 | E20: 1.142857143 | F20: 0.8490566038 | G20: 0.6923076923 | H20: 0.75 | I20: 1.25 | J20: 0.75 | K20: 1.25 | L20: D, G | M20: 6, 8
B21: - equipment (%) | C21: 75 | D21: 75 | E21: 75 | F21: 75 | G21: 75
B22: -installation (%) | C22: 25 | D22: 25 | E22: 25 | F22: 25 | G22: 25
B23: Fixed O&M (M€ /MW/year Bio Oil) | C23: 0.072 | D23: 0.072 | E23: 0.06857142857 | F23: 0.0679245283 | G23: 0.06923076923 | H23: 0.75 | I23: 1.25 | J23: 0.75 | K23: 1.25 | L23: F, G | M23: 6
B24: Variable O&M (€ /MWh Bio Oil) | C24: 2.7 | D24: 2.7 | E24: 2.7 | F24: 2.7 | G24: 2.7 | H24: 0.75 | I24: 1.25 | J24: 0.75 | K24: 1.25 | L24: F, G | M24: 6
B25: Start up (M€ /1,000 t Bio Oil) | C25: n.a. | D25: 0 | E25: 0 | G25: 0
B26: Technology specific data
B27: Specific energy content (GJ/ton) bio-oil) | C27: 16 | D27: 16 | E27: 16 | F27: 16 | G27: 16
B28: Specific density (kg/l) or (ton/m3) | C28: 1.2 | D28: 1.2 | E28: 1.2 | F28: 1.2 | G28: 1.2
B29: Specific investment (M€ /1,000 t Bio Oil) | C29: 1.2 | D29: 0.96 | E29: 0.6 | F29: 0.45 | G29: 0.36 | H29: 0.75 | I29: 1.25 | J29: 0.75 | K29: 1.25 | L29: D, G | M29: 6, 8
B30: - equipment (%) | C30: 75 | D30: 75 | E30: 75 | F30: 75 | G30: 75
B31: -installation (%) | C31: 25 | D31: 25 | E31: 25 | F31: 25 | G31: 25
B32: Fixed O&M (M€ /1,000 t Bio Oil) | C32: 0.036 | D32: 0.036 | E32: 0.036 | F32: 0.036 | G32: 0.036 | H32: 0.75 | I32: 1.25 | J32: 0.75 | K32: 1.25 | L32: F, G | M32: 6
B33: Variable O&M (M€ /1,000 t Bio Oil) | C33: 0.012 | D33: 0.012 | E33: 0.012 | F33: 0.012 | G33: 0.012 | H33: 0.75 | I33: 1.25 | J33: 0.75 | K33: 1.25 | L33: F, G | M33: 6
B34: Start up (M€ /1,000 t Bio Oil) | C34: n.a. | D34: 0 | E34: 0 | F34: 0 | G34: 0
B35: Notes:
B36: A. The plant size range is likely limited by the feedstock availability.
B37: A1. This value is the hourly rating and has been calculated as if the unit produces at capacity and was in operations 8,000 h/year.
B38: B. The plant size range is typical of the range found in the literature. It is highly uncertain given that the commercial demonstration plants in operation are much smaller.
B39: C. This is twice the time normally found in process operations.
B40: D. Capital costs for nth plant are used for 2050 and earlier costs are estimates.
B41: E. These are based on the commercial demonstration plant results.
B42: F. Nth plant estimates.
B43: G. M €/k tonne is million euro per 1,000 tonnes
B45: References
B46: [1] Muggen, G. 2015. Looking back at the first half year of commercial scale pyrolysis oil production at Empyro. tcbiomass Chicago November 4th 2015. http://www.gastechnology.org/tcbiomass/tcb2015/Muggen_Gerhard-Presentation-tcbiomass2015.pdf
B47: [2] BTG Bioliquids. Empyro project. https://www.btg-btl.com/en/company/projects/empyro
B48: [3] Mahajan. M. 2018. Biomass-A Massive opportunity in disguise. https://ec.europa.eu/energy/sites/ener/files/documents/32_dharmesh_mahajan-honeywell.pdf
B49: [4] Bridgwater, A., Meier, D. Radlein, D. 1999. An overview of fast pyrolysis of biomass. Organic Geochemistry, Volume 30, Issue 12, Pages 1479-1493, https://doi.org/10.1016/S0146-6380(99)00120-5.
B50: [5] BTG. November 2017 Newsletter. https://www.btg-btl.com/nieuwsbrieven/2017/november/en
B51: [6] Mark M. Wright, Justinus A. Satrio, and Robert C. Brown 2010. Techno-Economic Analysis of Biomass Fast Pyrolysis to Transportation Fuels https://www.nrel.gov/docs/fy11osti/46586.pdf
B52: [7] Hu, W., Dang, Q., Rover, M., Brown, R., Wright, M. 2015. Comparative techno-economic analysis of advanced biofuels, biochemicals, and hydrocarbon chemicals via the fast pyrolysis platform. Biofuels, 7:1, 57-67. http://dx.doi.org/10.1080/17597269.2015.1118780
B53: [8] Shemfe, M.,Sai Gu, S., Ranganathan, P. 2015. Techno-economic performance analysis of biofuel production and miniature electric power generation from biomass fast pyrolysis and bio-oil upgrading, Fuel, Volume 143, 2015, Pages 361-372, https://doi.org/10.1016/j.fuel.2014.11.078.
B54: [9] BE-Sustainable. 2014. Empyro BV breaks ground of its biomass to liquid pyrolysis plant. http://www.besustainablemagazine.com/cms2/empyro-bv-breaks-ground-of-its-biomass-to-liquid-pyrolysis-plant/
B55: [10] Ensyn. 2016. Scale-up & Optimization BETO Workshop. https://www.energy.gov/sites/prod/files/2016/10/f33/Graham_0.pdf
B56: [11] BTG. Pyrolysis oil properties. https://www.btg-btl.com/en/applications/oilproperties
B57: [12] Environment Canada. 1999. Bunker C Fuel Oil. www.etc-cte.ec.gc.ca/databases/oilproperties/pdf/web_bunker_c_fuel_oil.pdf

Sheet 95 Cellulosic ethanol
H1: Back to Index
B2: Technology | C2: Cellulosic Ethanol
C3: 2015 | D3: 2020 | E3: 2030 | F3: 2040 | G3: 2050 | H3: Uncertainty (2020) | J3: Uncertainty (2050) | L3: Note | M3: Ref
H4: Lower | I4: Upper | J4: Lower | K4: Upper
B5: Energy/technical data
B6: Typical total plant size 1,000 tonnes/year | C6: 60 | D6: 60 | E6: 150 | F6: 175 | G6: 200 | H6: 0.5 | I6: 1.5 | J6: 0.5 | K6: 1.5 | L6: A, B | M6: 9
B7: Typical total plant size, MW | C7: 55 | D7: 55 | E7: 130 | F7: 155 | G7: 180 | H7: 0.5 | I7: 1.5 | J7: 0.5 | K7: 1.5 | L7: A, A1, B | M7: 9
B8: Inputs
B9: Feedstock Consumption, MWh/MWh Total Input | C9: 1 | D9: 1 | E9: 1 | F9: 1 | G9: 1 | H9: 0.9 | I9: 1.5 | J9: 0.9 | K9: 1.5 | L9: C | M9: 1
B10: Outputs
B11: Ethanol Output, MWh/MWh Total Input | C11: 0.29 | D11: 0.29 | E11: 0.37 | F11: 0.39 | G11: 0.4 | H11: 0.8 | I11: 1.2 | J11: 0.8 | K11: 1.2 | L11: C | M11: 1
B12: Electiricity Output, MWh/MWh Total Input | C12: 0.04 | D12: 0.04 | E12: 0.05 | F12: 0.05 | G12: 0.06 | H12: 0.8 | I12: 1.2 | J12: 0.8 | K12: 1.2 | L12: C | M12: 1
B14: Forced outage (%) | C14: 4 | D14: 4 | E14: 2 | F14: 0 | G14: 0
B15: Planned outage (weeks per year) | C15: 2 | D15: 2 | E15: 2 | F15: 2 | G15: 2
B16: Technical lifetime (years) | C16: 25 | D16: 25 | E16: 25 | F16: 25 | G16: 25
B17: Construction time (years) | C17: 2 | D17: 2 | E17: 2 | F17: 2 | G17: 2
B18: Financial data
B19: Specific investment (M€ /MW Ethanol) | C19: 5.691921901 | D19: 5.691921901 | E19: 2.561364856 | F19: 2.248309151 | G19: 2.134470713 | H19: 0.75 | I19: 1.5 | J19: 0.75 | K19: 1.5 | L19: D, G | M19: 1, 10, 11
B20: - equipment (%) | C20: 75 | D20: 75 | E20: 75 | F20: 75 | G20: 75
B21: -installation (%) | C21: 25 | D21: 25 | E21: 25 | F21: 25 | G21: 25
B22: Fixed O&M (M€ /MW/year Ethanol) | C22: 0.113838438 | D22: 0.113838438 | E22: 0.05691921901 | F22: 0.05733188335 | G22: 0.05691921901 | H22: 0.95 | I22: 2 | J22: 0.95 | K22: 2 | L22: F, G | M22: 1
B23: Variable O&M (€ /MW Ethanol) | C23: 27.10439001 | D23: 27.10439001 | E23: 13.552195 | F23: 13.38279257 | G23: 13.552195 | H23: 0.95 | I23: 2 | J23: 0.95 | K23: 2 | L23: F, G | M23: 1
B24: Start-up (M€ /1,000 t Ethanol) | C24: 0 | D24: 0 | E24: 0 | G24: 0 | L24: E
B25: Technology specific data
B26: Specific energy content (GJ/ton) | C26: 26.9 | D26: 26.9 | E26: 26.9 | F26: 26.9 | G26: 26.9
B27: Specific density (kg/l) or (ton/m3) | C27: 0.79 | D27: 0.79 | E27: 0.79 | F27: 0.79 | G27: 0.79
B28: Specific investment (M€ /1,000 t Ethanol) | C28: 5.063291139 | D28: 5.063291139 | E28: 2.278481013 | F28: 2 | G28: 1.898734177 | H28: 0.75 | I28: 1.5 | J28: 0.75 | K28: 1.5 | L28: D, G | M28: 1, 10, 11
B29: - equipment (%) | C29: 75 | D29: 75 | E29: 75 | F29: 75 | G29: 75
B30: -installation (%) | C30: 25 | D30: 25 | E30: 25 | F30: 25 | G30: 25
B31: Fixed O&M (M€ /1,000 t Ethanol) | C31: 0.1012658228 | D31: 0.1012658228 | E31: 0.05063291139 | F31: 0.051 | G31: 0.05063291139 | H31: 0.95 | I31: 2 | J31: 0.95 | K31: 2 | L31: F, G | M31: 1
B32: Variable O&M (M€ /1,000 t Ethanol) | C32: 0.2025316456 | D32: 0.2025316456 | E32: 0.1012658228 | F32: 0.1 | G32: 0.1012658228 | H32: 0.95 | I32: 2 | J32: 0.95 | K32: 2 | L32: F, G | M32: 1
B33: Start-up (M€ /1,000 t Ethanol) | C33: 0 | D33: 0 | E33: 0 | F33: 0 | G33: 0 | L33: E
B35: Notes:
B36: A. The plant size is assumed based on the plants sizes of existing ethanol plants.
B37: A1. This value is the hourly rating and has been calculated as if the unit produces at capacity and was in operations 8,000 h/year.
B38: B. The plant size uncertainty represents the current range in the market.
B39: C. Not all process developers are attempting to maximize ethanol output; this can result in higher feedstock consumption but lower chemical use. Co-product production is higher if the ethanol yield is low.
B40: D. There is a wide range of reported capital costs for the existing plants and a wide range in the cost of future plants.
B41: E. Start-up costs are included in the operating costs.
B42: F. O&M costs are based on the nth plant. There are no public estimates for the costs from current plants. It has been estimated that they are twice the values for the nth plants. This may be optimistic unless the on line performance can be improved.
B43: G. M €/k tonne is million euro per 1,000 tonnes
B45: References
B46: [1] Tao, L., Schell, D., Davis, R., Tan, E., Elander, R. and Bratis, A. 2014. NREL 2012 Achievement of Ethanol Cost Targets: Biochemical Ethanol Fermentation via Dilute-Acid Pretreatment and Enzymatic Hydrolysis of Corn Stover. NREL/TP-5100-61563. https://www.nrel.gov/docs/fy14osti/61563.pdf
B47: [2] Kacelle. 2014. Bringing cellulosic ethanol to industrial production at Kalundborg, Denmark. https://biorefiningalliance.com/wp-content/uploads/2014/12/KACELLE-PUBLISHABLE-SUMMARY-web.pdf
B48: [3] POET-DSM achieves cellulosic biofuel breakthrough. Nov 2017. http://poetdsm.com/pr/poet-dsm-achieves-cellulosic-biofuel-breakthrough
B49: [4] Thakrar, A. 2017. PROJECT LIBERTY: Lessons learned in commercializing cellulosic biofuels. Presented at 6TH International Conference on Lignocellulosic Ethanol. Brussels, Sept 2017. https://ec.europa.eu/energy/en/events/6th-international-conference-ethanol-lignocellulosics.
B50: [5] Van der Meij, R. 2017. A venture capitalist’s view on investment in lingo-cellulosic ethanol. Presented at 6TH International Conference on Lignocellulosic Ethanol. Brussels, Sept 2017. https://ec.europa.eu/energy/en/events/6th-international-conference-ethanol-lignocellulosics.
B51: [6] Merritt, M. 2017. Real Progress in Cellulosic Biofuel. Biofuels, Bioprod. Bioref., 11: 943-944. https://doi.org/10.1002/bbb.1837
B52: [7] Beta Renewables. Oct 2017. The Alessandria court admitted the Gruppo Mossi Ghisolfi companies to the “concordato preventivo”. http://www.betarenewables.com/en/media-relations/news-detail/32
B53: [8] DuPont to sell cellulosic ethanol plant in blow to biofuel. Nov 2017. https://www.reuters.com/article/us-dowdupont-ethanol/dupont-to-sell-cellulosic-ethanol-plant-in-blow-to-biofuel-idUSKBN1D22T5
B54: [9] Clariant. 2017. Clariant And Enviral Announce First License Agreement on Sunliquid® Cellulosic Ethanol Technology. https://www.clariant.com/en/Corporate/News/2017/09/Clariant-and-Enviral-announce-first-license-agreement-on-sunliquid-cellulosic-ethanol-technology
B55: [10] Clariant. 2017. Clariant to Build Flagship Sunliquid® Cellulosic Ethanol Plant in Romania. https://www.clariant.com/en/Corporate/News/2017/10/Clariant-to-build-flagship-sunliquid-cellulosic-ethanol-plant-in-Romania
B56: [11] IEA Bioenergy Task 39. Cellulosic Ethanol Plants. http://demoplants.bioenergy2020.eu/
B57: [12] Brian Foody. 2016. Scaling Up Cellulosic Biofuels, Ideas & Experience. Presented at Scaling Up, Ottawa, Ontario, Nov 15, 2016.
B58: [13] Lee R Lynd, Xiaoyu Liang, Mary J Biddy, Andrew Allee, Hao Cai, Thomas Foust, Michael E Himmel, Mark S Laser, Michael Wang, Charles E Wyman. 2017. Cellulosic ethanol: status and innovation, In Current Opinion in Biotechnology, Volume 45, 2017, Pages 202-211, ISSN 0958-1669, https://doi.org/10.1016/j.copbio.2017.03.008
B59: [14] de Jong, S., Hoefnagels, R., Faaij, A., Slade, R., Mawhood, R. and Junginger, M. 2015. The feasibility of short-term production strategies for renewable jet fuels – a comprehensive techno-economic comparison. Biofuels, Bioprod. Bioref., 9: 778–800. https://www.doi.org/10.1002/bbb.1613
B60: [15] Irena. 2016. Innovation Outlook. Advanced Liquid Biofuels. http://www.irena.org/DocumentDownloads/Publications/IRENA_Innovation_Outlook_Advanced_Liquid_Biofuels_2016.pdf
B61: [16] Sub Group on Advanced Biofuels. 2017. Cost of Biofuel. http://platformduurzamebiobrandstoffen.nl/wp-content/uploads/2017/07/2017_SGAB_Cost-of-Biofuels.pdf

Sheet 96 Biomass to diesel an j. fuel
H1: Back to Index
B2: Technology | C2: Biomass to Diesel and Jet
C3: 2015 | D3: 2020 | E3: 2030 | F3: 2040 | G3: 2050 | H3: Uncertainty (2020) | J3: Uncertainty (2050) | L3: Note | M3: Ref
H4: Lower | I4: Upper | J4: Lower | K4: Upper
B5: Energy/technical data
B6: Typical total plant size 1,000 t FT Liquids/year | C6: 50 | D6: 50 | E6: 100 | F6: 125 | G6: 150 | H6: 1 | I6: 1.5 | J6: 0.5 | K6: 1.5 | L6: A, B | M6: 1, 6
B7: Typical total plant size, MW | C7: 75 | D7: 75 | E7: 150 | F7: 190 | G7: 225 | H7: 1 | I7: 1.5 | J7: 0.5 | K7: 1.5 | L7: A, A1, B | M7: 1, 6
B8: Inputs
B9: Feedstock Consumption, MWh/MWh Total Input | C9: 1 | D9: 1 | E9: 1 | F9: 1 | G9: 1 | H9: 0.8 | I9: 1 | J9: 0.8 | K9: 1 | L9: C | M9: 1
B10: Outputs
B11: Naphta Output, MWh/MWh Total Input | C11: 0.1376 | D11: 0.1376 | E11: =D11*0.4/0.38 -> 0.1448421053 | F11: =(E11+G11)/2 -> 0.1538947368 | G11: =D11*0.45/0.38 -> 0.1629473684 | H11: 0.8 | I11: 1.1 | J11: 0.8 | K11: 1.1 | L11: D | M11: 1
B12: Jet Fuel Output, MWh/MWh Total Input | C12: 0.0147 | D12: 0.0147 | E12: =D12*0.4/0.38 -> 0.01547368421 | F12: =(E12+G12)/2 -> 0.01644078947 | G12: =D12*0.45/0.38 -> 0.01740789474 | H12: 0.8 | I12: 1.1 | J12: 0.8 | K12: 1.1 | L12: D | M12: 1
B13: Diesel Output, MWh/MWh Total Input | C13: 0.0998 | D13: 0.0998 | E13: 0.1050526316 | F13: 0.1116184211 | G13: 0.1181842105 | H13: 0.8 | I13: 1.1 | J13: 0.8 | K13: 1.1 | L13: D | M13: 1
B14: Electricity Output, MWh/MWh Total Input | C14: 0.0117 | D14: 0.0117 | E14: 0.016 | F14: 0.018 | G14: 0.02 | H14: 0.8 | I14: 1.1 | J14: 0.8 | K14: 1.1 | L14: D | M14: 1
B16: Forced outage (%) | C16: 4 | D16: 4 | E16: 0 | F16: 0 | G16: 0
B17: Planned outage (weeks per year) | C17: 2 | D17: 2 | E17: 2 | F17: 2 | G17: 2
B18: Technical lifetime (years) | C18: 20 | D18: 25 | E18: 25 | F18: 25 | G18: 25
B19: Construction time (years) | C19: 2 | D19: 2 | E19: 2 | F19: 2 | G19: 2
B20: Financial data
B21: Specific investment (M€ /MW Liquids/year) | C21: 4.329004329 | D21: 4.329004329 | E21: 3.896103896 | F21: 3.618421053 | G21: 3.463203463 | H21: 0.75 | I21: 1.2 | J21: 0.75 | K21: 1.2 | L21: E, L | M21: 1, 6, 7, 8, 9
B22: - equipment (%) | C22: 75 | D22: 75 | E22: 75 | F22: 75 | G22: 75
B23: -installation (%) | C23: 25 | D23: 25 | E23: 25 | F23: 25 | G23: 25
B24: Fixed O&M (M€ /MW /year FT Liquids/year) | C24: 0.1038961039 | D24: 0.1038961039 | E24: 0.1038961039 | F24: 0.1026315789 | G24: 0.1038961039 | H24: 0.75 | I24: 1.2 | J24: 0.75 | K24: 1.2 | L24: L | M24: 1
B25: Variable O&M (€ /MWh FT Liquids/year) | C25: 1.06257379 | D25: 1.06257379 | E25: 1.06257379 | F25: 1.063636364 | G25: 1.06257379 | H25: 0.75 | I25: 1.2 | J25: 0.75 | K25: 1.2 | L25: L | M25: 1
B26: Start up (M€ /1,000 t FT Liquids/year) | C26: 0 | D26: 0 | E26: 0 | F26: 0 | G26: 0 | L26: F
B27: Technology specific data
B28: Specific energy content (GJ/ton) FT Diesel) | C28: 44 | D28: 44 | E28: 44 | F28: 44 | G28: 44
B29: Specific density (kg/l) or (ton/m3) | C29: 0.77 | D29: 0.77 | E29: 0.77 | F29: 0.77 | G29: 0.77
B30: Specific investment (M€ /1,000 t FT Liquids/year) | C30: 6.493506494 | D30: 6.493506494 | E30: 5.844155844 | F30: 5.5 | G30: 5.194805195 | H30: 0.75 | I30: 1.2 | J30: 0.75 | K30: 1.2 | L30: E, L | M30: 1, 6, 7, 8, 9
B31: - equipment (%) | C31: 75 | D31: 75 | E31: 75 | F31: 75 | G31: 75
B32: -installation (%) | C32: 25 | D32: 25 | E32: 25 | F32: 25 | G32: 25
B33: Fixed O&M (M€ /1,000 t FT Liquids/year) | C33: 0.1558441558 | D33: 0.1558441558 | E33: 0.1558441558 | F33: 0.156 | G33: 0.1558441558 | H33: 0.75 | I33: 1.2 | J33: 0.75 | K33: 1.2 | L33: L | M33: 1
B34: Variable O&M (M€ /1,000 t FT Liquids/year) | C34: 0.01298701299 | D34: 0.01298701299 | E34: 0.01298701299 | F34: 0.013 | G34: 0.01298701299 | H34: 0.75 | I34: 1.2 | J34: 0.75 | K34: 1.2 | L34: L | M34: 1
B35: Start up (M€ /1,000 t FT Liquids/year) | C35: 0 | D35: 0 | E35: 0 | F35: 0 | G35: 0 | L35: F
B37: Notes:
B38: A. The plant size is assumed based on the proposed Velocys plant and the NREL nth plant.
B39: A1. This value is the hourly rating and has been calculated as if the unit produces at capacity and was in operations 8,000 h/year
B40: B. Feedstock availability is likely to determine the maximum plant size.
B41: C. The feedstock requirements could vary with efforts to improve the desired product selectivity.
B42: D. Over time the power available for export may increase due to improve thermal management in the plant.
B43: E. There is a wide range of reported capital costs for the existing plants and a wide range in the cost of future plants.
B44: F. Start-up costs are included in the operating costs.
B45: M €/k tonne is million euro per 1,000 tonnes
B47: References
B48: [1] Tan, E. C. D., Snowden-Swan, L. J., Talmadge, M., Dutta, A., Jones, S., Ramasamy, K. K., Gray, M., Dagle, R., Padmaperuma, A., Gerber, M., Sahir, A. H., Tao, L. and Zhang, Y. 2017. Comparative techno-economic analysis and process design for indirect liquefaction pathways to distillate-range fuels via biomass-derived oxygenated intermediates upgrading. Biofuels, Bioprod. Bioref., 11: 41–66. https://www.doi.org/10.1002/bbb.1710
B49: [2] Kreutz, T., Larson, E., Liu, G., Williams, R. 2008. Fischer-Tropsch Fuels from Coal and Biomass. 25th Annual International Pittsburgh Coal Conference. http://acee.princeton.edu/wp-content/uploads/2016/10/Kreutz-et-al-PCC-2008-10-7-08.pdf
B50: [3] Baliban, R., Elia, J., Floudas, C., Gurau, B., Weingarten, M., and Klotz, S. 2013. Hardwood Biomass to Gasoline, Diesel, and Jet Fuel: 1. Process Synthesis and Global Optimization of a Thermochemical Refinery. Energy & Fuels 2013 27 (8), 4302-4324. https://www.doi.org/10.1021/ef302003f
B51: [4] Sikarwar, V., Zhao, M., Clough, P., Yao, J., Zhong, X., Memon, Shah, M., Anthony, E., and Fennell, P. 2016. An overview of advances in biomass gasification. Energy Environ. Sci. 2016, 9, 2939. https://doi.org/10.1039/C6EE00935B
B52: [5] Molino, A., Chianese, S., Musmarra, D. 2016. Biomass gasification technology: The state of the art overview, In Journal of Energy Chemistry, Volume 25, Issue 1, 2016, Pages 10-25, ISSN 2095-4956, https://doi.org/10.1016/j.jechem.2015.11.005
B53: [6] Velocys. 2017. The biomass-to-liquids process. http://www.velocys.com/our-biorefineries/
B54: [7] Chandra, P.K. & Payne, Fred. 1986. Turndown Ratio of a Gasifier-Combustor Predicted by a Simulation Model. Transactions of the ASAE. 29. 1748-1753. https://doi.org/10.13031/2013.30383.
B55: [8] Danish Energy Agency. 2017. Energy Statistics 2015. https://ens.dk/sites/ens.dk/files/Statistik/energy_statistics_2015.pdf
B56: [9] Li X, Rubæk GH, Müller-Stöver DS, Thomsen TP, Ahrenfeldt J and Sørensen P. 2017. Plant Availability of Phosphorus in Five Gasification Biochars. Front. Sustain. Food Syst. 1:2. https://www.doi.org/10.3389/fsufs.2017.00002
B57: [10] Velocys. 2017. Establishment of a strategic alliance with TRI. http://www.velocys.com/establishment-of-a-strategic-alliance-with-tri/
B58: [11] Velocys. 2017. Velocys plans for the construction of a commercial BTL plant move forward. https://biorrefineria.blogspot.ca/2017/06/velocys-plans-for-construction-of-commercial-BTL-plant-move-forward.html
B59: [12] Tijm, P. 1994. Shell Middle Distillate Synthesis: The Process, The Plant, The Products. http://web.anl.gov/PCS/acsfuel/preprint%20archive/Files/39_4_WASHINGTON%20DC_08-94_1146.pdf
B60: [13] van der Laan, P. 1999. Kinetics, Selectivity and Scale Up of the Fischer-Tropsch Synthesis. http://www.adktroutguide.com/files/1999_Phd_Thesis_-_Kinetics_Selectivity_and_Scaleup_of_FT_Synthesis.pdf
B61: [14] Industrial Equipment News. 2017. Mississippi Lands Biofuel Refinery. https://www.ien.com/operations/news/20980331/mississippi-lands-biofuel-refinery
B62: [15] Irena. 2016. Innovation Outlook. Advanced Liquid Biofuels. http://www.irena.org/DocumentDownloads/Publications/IRENA_Innovation_Outlook_Advanced_Liquid_Biofuels_2016.pdf
B63: [16] Sub Group on Advanced Biofuels. 2017. Cost of Biofuel. http://platformduurzamebiobrandstoffen.nl/wp-content/uploads/2017/07/2017_SGAB_Cost-of-Biofuels.pdf
B64: [17] de Jong, S., Hoefnagels, R., Faaij, A., Slade, R., Mawhood, R. and Junginger, M. 2015. The feasibility of short-term production strategies for renewable jet fuels – a comprehensive techno-economic comparison. Biofuels, Bioprod. Bioref., 9: 778–800. https://www.doi.org/10.1002/bbb.1613

Sheet 97 Methanol from biomass gasif.
H1: Back to Index
B2: Technology | C2: Bio Methanol
C3: 2015 | D3: 2020 | E3: 2030 | F3: 2040 | G3: 2050 | H3: Uncertainty (2020) | J3: Uncertainty (2050) | L3: Note | M3: Ref
H4: Lower | I4: Upper | J4: Lower | K4: Upper
B5: Energy/technical data
B6: Typical total plant size 1,000 t Methanol/year | C6: 100 | D6: 100 | E6: 200 | F6: 250 | G6: 300 | H6: 0.5 | I6: 2 | J6: 0.5 | K6: 1.25 | L6: A, B | M6: 3, 5, 6
B7: Typical total plant size, MW | C7: 65 | D7: 65 | E7: 130 | F7: 165 | G7: 195 | H7: 0.5 | I7: 2 | J7: 0.5 | K7: 1.25 | L7: A, A1, B | M7: 3, 5, 6
B8: Inputs
B9: Feedstock Consumption, MWh/MWh Total Input | C9: 1 | D9: 1 | E9: 1 | F9: 1 | G9: 1 | H9: 0.9 | I9: 1.5 | J9: 0.9 | K9: 1.2 | M9: 1
B10: Outputs
B11: Methanol Output, MWh/MWh Total Input | C11: 0.58 | D11: 0.58 | E11: 0.61 | F11: 0.63 | G11: 0.65 | H11: 1 | I11: 1.33 | J11: 1 | K11: 1.33 | L11: D | M11: 1
B12: District heat Output, MWh/MWh Total Input | C12: 0.22 | D12: 0.22 | E12: 0.22 | F12: 0.22 | G12: 0.22 | H12: 0.8 | I12: 1.25 | J12: 0.8 | K12: 1.25 | L12: D | M12: 1
B13: Electricity Output, MWh/MWh Total Input | C13: 0.02 | D13: 0.02 | E13: 0.02 | F13: 0.02 | G13: 0.02 | H13: 0.8 | I13: 1.25 | J13: 0.8 | K13: 1.25 | L13: D | M13: 1
B15: Forced outage (%) | C15: 4 | D15: 4 | E15: 0 | F15: 0 | G15: 0
B16: Planned outage (weeks per year) | C16: 2 | D16: 2 | E16: 2 | F16: 2 | G16: 2
B17: Technical lifetime (years) | C17: 25 | D17: 20 | E17: 20 | F17: 20 | G17: 20
B18: Construction time (years) | C18: 2.5 | D18: 2.5 | E18: 2.5 | F18: 2.5 | G18: 2.5
B19: Financial data
B20: Specific investment (M€ /MW Methanol) | C20: 5.258033106 | D20: 5.258033106 | E20: 2.921129503 | F20: 2.121212121 | G20: 1.460564752 | H20: 0.5 | I20: 1 | J20: 0.8 | K20: 1.2 | L20: F | M20: 1, 3, 5, 6
B21: - equipment (%) | C21: 75 | D21: 75 | E21: 75 | F21: 75 | G21: 75
B22: -installation (%) | C22: 25 | D22: 25 | E22: 25 | F22: 25 | G22: 25
B23: Fixed O&M (M€ /MW/year Methanol) | C23: 0.05842259007 | D23: 0.05842259007 | E23: 0.03894839338 | F23: 0.03835826621 | G23: 0.03894839338 | H23: 0.9 | I23: 1.1 | J23: 0.9 | K23: 1.1 | L23: E, F | M23: 1
B24: Variable O&M (€ /MWh methanol) | C24: 20.40430758 | D24: 20.40430758 | E24: 13.60287172 | F24: 13.60287172 | G24: 13.60287172 | H24: 0.9 | I24: 1.1 | J24: 0.9 | K24: 1.1 | L24: E,,F | M24: 1
B25: Start up (M€ /1,000 t Methanoll) | C25: 0 | D25: 0 | E25: 0 | G25: 0
B26: Technology specific data
B27: Specific energy content (GJ/ton) methanol) | C27: 20.1 | D27: 20.1 | E27: 20.1 | F27: 20.1 | G27: 20.1
B28: Specific density (kg/l) or (ton/m3) | C28: 0.79 | D28: 0.79 | E28: 0.79 | F28: 0.79 | G28: 0.79
B29: Specific investment (M€ /1,000 t Methanol) | C29: 3.417721519 | D29: 3.417721519 | E29: 1.898734177 | F29: 1.4 | G29: 0.9493670886 | H29: 0.5 | I29: 1 | J29: 0.8 | K29: 1.2 | L29: F | M29: 1, 3, 5, 6
B30: Fixed O&M (M€ /1,000 t Methanol) | C30: 0.03797468354 | D30: 0.03797468354 | E30: 0.0253164557 | F30: 0.0253164557 | G30: 0.0253164557 | H30: 0.9 | I30: 1.1 | J30: 0.9 | K30: 1.1 | L30: E, F | M30: 1
B31: Variable O&M (M€ /1,000 t Methanol) | C31: 0.1139240506 | D31: 0.1139240506 | E31: 0.07594936709 | F31: 0.07594936709 | G31: 0.07594936709 | H31: 0.9 | I31: 1.1 | J31: 0.9 | K31: 1.1 | L31: E,,F | M31: 1
B32: Start up (M€ /1,000 t Methanoll) | C32: 0 | D32: 0 | E32: 0 | F32: 0 | G32: 0
B34: Notes:
B35: A. The plant size range is assumed based on the proposed Värmlands plant and the NREL nth plant.
B36: A1. This value is the hourly rating and has been calculated as if the unit produces at capacity and was in operations 8,000 h/year.
B37: B. Feedstock availability is likely to determine the maximum plant size.
B38: C. Some plants may produce their own power and have no power imports.
B39: D. Plants that produce their own power will have much lower heat available to district heat.
B40: E. Assumed a 25/75 split on fixed to variable operating costs.
B41: F. M €/k tonne is million euro per 1,000 tonnes
B43: References
B44: [1] Andersson, J.,Lundgren, J., and Marklund, M. 2014. Methanol production via pressurized entrained flow biomass gasification – Techno-economic comparison of integrated vs. stand-alone production, In Biomass and Bioenergy, Volume 64, 2014, Pages 256-268, ISSN 0961-9534, https://doi.org/10.1016/j.biombioe.2014.03.063
B45: [2] Danish Technology Institute. 2011. GreenSynFuels. EUDP project journal number: 64010-0011. http://serenergy.com/wp-content/uploads/2015/11/GreenSynFuels_report_final.pdf
B46: [3] Clausen, L. 2014. Integrated torrefaction vs. external torrefaction – A thermodynamic analysis for the case of a thermochemical biorefinery. Energy, Volume 77, Pages 597-607. https://doi.org/10.1016/j.energy.2014.09.042.
B47: [4] IEA Bioenergy Task 39. 2016. IEA-Bioenergy-Task-39-Newsletter-Issue-42-April-2016. http://task39.sites.olt.ubc.ca/files/2012/01/IEA-Bioenergy-Task-39-Newsletter-Issue-42-April-2016.pdf
B48: [5] Värmlands Metanol AB. http://www.varmlandsmetanol.se/Om%20Projektet.htm
B49: [6] Värmlands Metanol AB. 2016. Metanol från skog - ett miljövänligt drivmedel. http://www.varmlandsmetanol.se/dokument/Folder%20VM%20sept%202016.pdf
B50: [7] NREL. 2011. Technoeconomic comparison of biofuels: ethanol, methanol, and gasoline from gasification of woody residues. https://www.nrel.gov/docs/fy12osti/52636.pdf
B51: [8] Sub Group on Advanced Biofuels. 2017. Cost of Biofuel. http://platformduurzamebiobrandstoffen.nl/wp-content/uploads/2017/07/2017_SGAB_Cost-of-Biofuels.pdf

Sheet 98 Methanol from power
H1: Back to Index
B2: Technology | C2: Power to Methanol
C3: 2015 | D3: 2020 | E3: 2030 | F3: 2040 | G3: 2050 | H3: Uncertainty (2020) | J3: Uncertainty (2050) | L3: Note | M3: Ref
H4: Lower | I4: Upper | J4: Lower | K4: Upper
B5: Energy/technical data
B6: Typical total plant size 1,000 t Methanol/year | C6: 5 | D6: 50 | E6: 100 | F6: 125 | G6: 150 | H6: 0.5 | I6: 1.5 | J6: 0.5 | K6: 1.5 | L6: A, B | M6: 4, 5, 11
B7: Typical total plant size, MW | C7: 3 | D7: 33 | E7: 65 | F7: 83 | G7: 100 | H7: 0.5 | I7: 1.5 | J7: 0.5 | K7: 1.5 | L7: A, A1, B | M7: 4, 5
B8: Inputs
B9: CO2 Consumption, t/t Methanol | C9: 1.37 | D9: 1.37 | E9: 1.37 | F9: 1.37 | G9: 1.37 | H9: 1 | I9: 1.1 | J9: 1 | K9: 1.1 | M9: 5
B10: Hydrogen Consumption, t/t Methanol | C10: 0.192 | D10: 0.192 | E10: 0.192 | F10: 0.192 | G10: 0.192 | H10: 1 | I10: 1.1 | J10: 1 | K10: 1.1 | M10: 5
B11: Electricity Consumption, MWh/MWh Total Inputs | C11: 1 | D11: 1 | E11: 1 | F11: 1 | G11: 1 | H11: 0.9 | I11: 1.2 | J11: 0.95 | K11: 1.1 | L11: C | M11: 2,3
B12: Outputs
B13: Methanol Output, MWh/MWh Input | C13: 0.58 | D13: 0.58 | E13: 0.61 | F13: 0.63 | G13: 0.65 | H13: 1 | I13: 1.33 | J13: 1 | K13: 1.33 | L13: D | M13: 2,3
B14: District Heating Output, MWh/MWh Total input | C14: 0.25 | D14: 0.25 | E14: 0.25 | F14: 0.25 | G14: 0.25 | H14: 0 | I14: 1 | J14: 0 | K14: 1 | L14: E | M14: 2,3
B16: Forced outage (%) | C16: 4 | D16: 4 | E16: 0 | F16: 0 | G16: 0
B17: Planned outage (weeks per year) | C17: 2 | D17: 2 | E17: 2 | F17: 2 | G17: 2
B18: Technical lifetime (years) | C18: 25 | D18: 20 | E18: 20 | F18: 20 | G18: 20
B19: Construction time (years) | C19: 2 | D19: 2 | E19: 2 | F19: 2 | G19: 2
B20: Financial data
B21: Specific investment (M€ /MW Methanol) | C21: 4.513432836 | D21: 4.513432836 | E21: 3.008955224 | F21: 2.256716418 | G21: 1.504477612 | H21: 0.5 | I21: 1 | J21: 0.8 | K21: 1.2 | L21: F | M21: 1, 3, 5, 6
B22: - equipment (%) | C22: 75 | D22: 75 | E22: 75 | F22: 75 | G22: 75
B23: -installation (%) | C23: 25 | D23: 25 | E23: 25 | F23: 25 | G23: 25
B24: Fixed O&M (M€ /MW Methanol/year) | C24: 0.05265671642 | D24: 0.05265671642 | E24: 0.05265671642 | F24: 0.05265671642 | G24: 0.05265671642 | H24: 0.9 | I24: 1.1 | J24: 0.9 | K24: 1.1 | L24: E, F | M24: 1
B25: Variable O&M (€ /MWh) | C25: 6.268656716 | D25: 6.268656716 | E25: 6.268656716 | F25: 6.268656716 | G25: 6.268656716 | H25: 0.9 | I25: 1.1 | J25: 0.9 | K25: 1.1 | L25: E, F | M25: 1
B26: Start up (M€ /1,000 t Methanol) | C26: 0 | D26: 0 | E26: 0 | F26: 0 | G26: 0
B27: Technology specific data
B28: Specific energy content (GJ/ton) methanol) | C28: 20.1 | D28: 20.1 | E28: 20.1 | F28: 20.1 | G28: 20.1
B29: Specific density (kg/l) or (ton/m3) | C29: 0.79 | D29: 0.79 | E29: 0.79 | F29: 0.79 | G29: 0.79
B30: Specific investment (M€ /1,000 t Methanol) | C30: 3 | D30: 3 | E30: 2 | F30: 1.5 | G30: 1 | H30: 0.5 | I30: 1 | J30: 0.8 | K30: 1.2 | L30: F | M30: 1, 3, 5, 6
B31: - equipment (%) | C31: 75 | D31: 75 | E31: 75 | F31: 75 | G31: 75
B32: -installation (%) | C32: 25 | D32: 25 | E32: 25 | F32: 25 | G32: 25
B33: Fixed O&M (M€ /1,000 t Methanol) | C33: 0.035 | D33: 0.035 | E33: 0.035 | F33: 0.035 | G33: 0.035 | H33: 0.9 | I33: 1.1 | J33: 0.9 | K33: 1.1 | L33: E, F | M33: 1
B34: Variable O&M (M€ /1,000 t Methanol) | C34: 0.035 | D34: 0.035 | E34: 0.035 | F34: 0.035 | G34: 0.035 | H34: 0.9 | I34: 1.1 | J34: 0.9 | K34: 1.1 | L34: E, F | M34: 1
B35: Start up (M€ /1,000 t Methanol) | C35: 0 | D35: 0 | E35: 0 | G35: 0
B37: Notes:
B38: A. The plant size range is based on the CRI plants and other analysis in the literature.
B39: A1. This value is the hourly rating and has been calculated as if the unit produces at capacity and was in operations 8,000 h/year.
B40: B. CO2 availability is likely to determine the maximum plant size.
B41: C. Power use improvement depends on improved efficiency for electrolyzers.
B42: D. Methanol is the only output.
B43: E. Waste heat is of low quality.
B44: F. The methanol synthesis step does not lend itself to intermittent operation. The concept of intermittent power to methanol is not practical without intermediate storage for hydrogen that would allow the methanol plant to operate continuously. This would have a significant capital cost impact.
B45: G. There is a wide range of capital costs in the literature.
B46: H. M €/k tonne is million euro per 1,000 tonnes
B48: References
B49: [1] Next generation of methanol fuel cell vehicles sees the light of day. 2017. http://serenergy.com/next-generation-of-methanol-fuel-cell-vehicles-sees-the-light-of-day/
B50: [2] Stefansson, B. 2015. Power and CO2 emissions to methanol. https://eu-ems.com/event_images/presentations/Benedikt%20Stefansson%20presentation.pdf
B51: [3] Stefansson, B. 2017. CO2 to Renewable Methanol: experiences and perspectives for the steel industry. https://www.co2-cato.org/cato-download/4123/20170512_143353_20-11.00-Stefansson-public.pdf
B52: [4] MefCO2 Project Brochure. 2017. http://www.mefco2.eu/pdf/MefCO2_Brochure_00.pdf
B53: [5] Atsonios K, et al., Investigation of technical and economic aspects for methanol production through CO2 hydrogenation, International Journal of Hydrogen Energy (2016), http://dx.doi.org/10.1016/j.ijhydene.2015.12.074
B54: [6] Methanol Institute. http://www.methanol.org/the-methanol-industry/
B55: [7] Hovsapian, R. 2017. Role of Electrolyzers in Grid Services. US DOE. https://energy.gov/sites/prod/files/2017/06/f34/fcto_may_2017_h2_scale_wkshp_hovsapian.pdf
B56: [8] Manuel Götz, Jonathan Lefebvre, Friedemann Mörs, Amy McDaniel Koch, Frank Graf, Siegfried Bajohr, Rainer Reimert, Thomas Kolb, Renewable Power-to-Gas: A technological and economic review, In Renewable Energy, Volume 85, 2016, Pages 1371-1390, ISSN 0960-1481, https://doi.org/10.1016/j.renene.2015.07.066
B57: [9] Danish Technology Institute. 2011. GreenSynFuels. EUDP project journal number: 64010-0011. http://serenergy.com/wp-content/uploads/2015/11/GreenSynFuels_report_final.pdf
B58: [10] Haldor Topsøe. 2017. Gasoline synthesis (TIGAS). https://www.topsoe.com/processes/gasoline-synthesis/gasoline-synthesis-tigas
B59: [11] M. Pérez-Fortes and E. Tzimas; Techno-economic and environmental evaluation of carbon dioxide utilisation for fuel production. Synthesis of methanol and formic acid; EUR 27629 EN; https://dx.doi.org/10.2790/981669
B60: [12] enea Consulting. 2016. The Potential of Power to Gas. Technology review and economic potential assessment. http://www.enea-consulting.com/wp-content/uploads/2016/01/ENEA-Consulting-The-potential-of-power-to-gas.pdf
B61: [13] CRI. 2017. Commercial Scale Plants. http://carbonrecycling.is/comercial-scale/

Sheet 99 SNG from methan. of biogas
H1: Back to Index
B2: Technology | C2: SNG from Biogas
C3: 2015 | D3: 2020 | E3: 2030 | F3: 2040 | G3: 2050 | H3: Uncertainty (2020) | J3: Uncertainty (2050) | L3: Note | M3: Ref
H4: Lower | I4: Upper | J4: Lower | K4: Upper
B5: Energy/technical data
B6: Typical total plant size 1,000 GJ SNG/year | C6: 70 | D6: 100 | E6: 250 | F6: 500 | G6: 700 | H6: 0.75 | I6: 1.25 | J6: 0.75 | K6: 1.25 | L6: A, B | M6: 1, 7
B7: Typical total plant size, MW | C7: 2.314814815 | D7: 3.306878307 | E7: 8.267195767 | F7: 16.53439153 | G7: 23.14814815 | H7: 0.75 | I7: 1.25 | J7: 0.75 | K7: 1.25 | L7: A, A1, B | M7: 1, 7
B8: Inputs
B9: Biogas Consumption, MWh/MWh Total Input | C9: 0.53 | D9: 0.53 | E9: 0.53 | F9: 0.53 | G9: 0.53 | H9: 0.8 | I9: 1.2 | J9: 0.8 | K9: 1.2 | L9: C, I | M9: 2
B10: Hydrogen Consumption, MWh/MWh Total Input | C10: 0.46 | D10: 0.46 | E10: 0.46 | F10: 0.46 | G10: 0.46 | H10: 0.8 | I10: 1.2 | J10: 0.8 | K10: 1.2 | L10: C, E | M10: 2
B11: Electricity Consumption, MWh/MWh Total Input | C11: 0.01 | D11: 0.01 | E11: 0.01 | F11: 0.01 | G11: 0.01 | H11: 0.5 | I11: 1.5 | J11: 0.5 | K11: 1.5 | L11: D | M11: 2
B12: Outputs
B13: SNG Output, MWh/MWh Total Input | C13: 0.89 | D13: 0.89 | E13: 0.89 | F13: 0.89 | G13: 0.89 | H13: 0.9 | I13: 1.1 | J13: 0.95 | K13: 1.05 | L13: G | M13: 2
B14: District Heating Output, MWh/MWh Total input | C14: 0.1 | D14: 0.1 | E14: 0.1 | F14: 0.1 | G14: 0.1 | H14: 0.5 | I14: 1.5 | J14: 0.5 | K14: 1.5 | L14: G | M14: 2
B16: Forced outage (%) | C16: 4 | D16: 4 | E16: 0 | F16: 0 | G16: 0 | L16: F
B17: Planned outage (weeks per year) | C17: 2 | D17: 2 | E17: 2 | F17: 2 | G17: 2
B18: Technical lifetime (years) | C18: 25 | D18: 25 | E18: 25 | F18: 25 | G18: 25
B19: Construction time (years) | C19: 1 | D19: 1 | E19: 1 | F19: 1 | G19: 1
B20: Financial data
B21: Specific investment (M€ /MW SNG) | C21: 1.08864 | D21: 0.9072 | E21: 0.756 | F21: 0.6048 | G21: 0.4536 | H21: 0.5 | I21: 1.5 | J21: 0.5 | K21: 1.5 | L21: H | M21: 1
B22: - equipment (%) | C22: 75 | D22: 75 | E22: 75 | F22: 75 | G22: 75
B23: -installation (%) | C23: 25 | D23: 25 | E23: 25 | F23: 25 | G23: 25
B24: Fixed O&M (M€ /MW/year SNG) | C24: 0.0435456 | D24: 0.036288 | E24: 0.03024 | F24: 0.024192 | G24: 0.018144 | H24: 0.9 | I24: 1.1 | J24: 0.9 | K24: 1.1 | M24: 1
B25: Variable O&M (€ /MWh SNG) | C25: 5.184 | D25: 4.32 | E25: 3.6 | F25: 2.88 | G25: 2.16 | H25: 0.9 | I25: 1.1 | J25: 0.9 | K25: 1.1 | M25: 1
B26: Start up (€ /GJ SNG) | C26: 0 | D26: 0 | E26: 0 | F26: 0 | G26: 0
B27: Technology specific data
B28: Specific energy content (GJ/ton) SNG) | C28: 50.7 | D28: 50.7 | E28: 50.7 | F28: 50.7 | G28: 50.7
B29: Specific investment (M€ / 1000 GJ SNG) | C29: 0.036 | D29: 0.03 | E29: 0.025 | F29: 0.02 | G29: 0.015 | H29: 0.5 | I29: 1.5 | J29: 0.5 | K29: 1.5 | L29: H | M29: 1
B30: - equipment (%) | C30: 75 | D30: 75 | E30: 75 | F30: 75 | G30: 75
B31: -installation (%) | C31: 25 | D31: 25 | E31: 25 | F31: 25 | G31: 25
B32: Fixed O&M (€ /GJ SNG) | C32: 0.144 | D32: 0.12 | E32: 0.1 | F32: 0.08 | G32: 0.06 | H32: 0.9 | I32: 1.1 | J32: 0.9 | K32: 1.1 | M32: 1
B33: Variable O&M (€ /GJ SNG) | C33: 0.144 | D33: 0.12 | E33: 0.1 | F33: 0.08 | G33: 0.06 | H33: 0.9 | I33: 1.1 | J33: 0.9 | K33: 1.1 | M33: 1
B34: Start up (€ /GJ SNG) | C34: 0 | D34: 0 | E34: 0 | F34: 0 | G34: 0
B36: Notes:
B37: A. The plant size range is likely limited by the biogas availability.
B38: B. A1. This value is the hourly rating and has been calculated as if the unit produces at capacity and was in operations 8,000 h/year.
B39: C. Plant size progression is based on moving from small biogas system to large systems as the technology is proven.
B40: D. There are variations in the process that will have some impact on the overall efficiency. It is not yet clear what might become the industry standard.
B41: E. This is the power for the system excluding the electrolyzer.
B42: F. The methanation step does not lend itself to intermittent operation. The concept of intermittent power to SNG is not practical without intermediate storage for hydrogen that would allow the methanation plant to operate continuously. This would have a significant capital cost impact.
B43: G. Some recoverable waste heat is available from the process.
B44: H. There is a significant range in the capital cost estimates.
B45: I. Assumes that the biogas is 65% methane.
B47: References
B48: [1] Manuel Götz, Jonathan Lefebvre, Friedemann Mörs, Amy McDaniel Koch, Frank Graf, Siegfried Bajohr, Rainer Reimert, Thomas Kolb, Renewable Power-to-Gas: A technological and economic review, In Renewable Energy, Volume 85, 2016, Pages 1371-1390, ISSN 0960-1481, https://doi.org/10.1016/j.renene.2015.07.066
B49: [2] Swiss Federal Office of Energy SFOE. 2017. Direct Methanation of Biogas. https://www.aramis.admin.ch/Default.aspx?DocumentID=45656&Load=true
B50: [3] gwf gas + energy. 2014. Das e-gas-Projekt am Biogasanlagen-standort in Werlte. https://www.di-verlag.de/media/content/gwf-GE/gwf_Gas_5_14/gwf-GE_05_2014_FB_Kurt.pdf?xaf26a=7841c984ef837209544e
B51: [4] Rauch, R., Hrbek, J. and Hofbauer, H. 2014. Biomass gasification for synthesis gas production and applications of the syngas. WIREs Energy Environ, 3: 343–362. https://doi.org/10.1002/wene.97
B52: [5] Combination of Power-to-Gas with Biogas Plant. Vienna University of Technology. https://www.tuwien.ac.at/fileadmin/t/tuwien/fotos/pa/download/2015/HM2015/Flyer_Power_to_Bio--Gas_EN.pdf
B53: [6] Hitachi Zosen Corporation and Hitachi Zosen Inova to Build First Joint Power-To-Gas Plant. Dec 2017. http://www.hz-inova.com/cms/en/home?p=6276
B54: [7] Hansen, J., Holstebroe, M., Jensen, M., Rass-Hansen, J., Heiredal-Clausen, T. 2016. SOEC Enabled Biogas Upgrading. 12th European SOFC & SOE Forum.
B55: [8] Udvikling og effektivisering af biogasproduktionen I Danmark – Delrapport 1 og 2, Danish Energy Agency Biogas Taskforce 2015.

Sheet 100 Hydrothermal liquifaction
H1: Back to Index
B2: Technology | C2: Bio Oil
C3: 2015 | D3: 2020 | E3: 2030 | F3: 2040 | G3: 2050 | H3: Uncertainty (2020) | J3: Uncertainty (2050) | L3: Note | M3: Ref
H4: Lower | I4: Upper | J4: Lower | K4: Upper
B5: Energy/technical data
B6: Typical total plant size 1,000 t Bio Oil/year | C6: n.a. | D6: 120 | E6: 180 | F6: 250 | G6: 300 | H6: 0.5 | I6: 1.25 | J6: 0.75 | K6: 1.25 | L6: A, B | M6: 1, 6
B7: Typical total plant size. MW | C7: n.a. | D7: 145 | E7: 220 | F7: 300 | G7: 360 | H7: 0.5 | I7: 1.25 | J7: 0.75 | K7: 1.25 | L7: A, A1, B | M7: 1, 6
B8: Inputs
B9: Feedstock Consumption, MWh/MWh Total Input | C9: n.a. | D9: 0.95 | E9: 0.95 | F9: 0.95 | G9: 0.95 | H9: 0.9 | I9: 1.5 | J9: 0.9 | K9: 1.25 | L9: E | M9: 4
B10: Electricity Consumption, MWh/MWh Total Input | C10: n.a. | D10: 0.05 | E10: 0.05 | F10: 0.05 | G10: 0.05 | H10: 0.75 | I10: 1.25 | J10: 0.75 | K10: 1.25 | L10: E | M10: 4
B11: Outputs
B12: Bio Oil Output, MWh/MWh Total Input | C12: n.a. | D12: 0.82 | E12: 0.82 | F12: 0.82 | G12: 0.82 | H12: 0.9 | I12: 1.1 | J12: 0.9 | K12: 1.1 | L12: E | M12: 4
B13: Co-products Output MWh/MWh Total Input | C13: n.a. | D13: 0 | E13: 0 | F13: 0 | G13: 0 | H13: 0.9 | I13: 1.1 | J13: 0.9 | K13: 1.1 | L13: E | M13: 4
B15: Forced outage (%) | C15: n.a. | D15: 4 | E15: 0 | F15: 0 | G15: 0
B16: Planned outage (weeks per year) | C16: 4 | D16: 4 | E16: 4 | F16: 4 | G16: 4 | L16: C | M16: 8
B17: Technical lifetime (years) | C17: 20+ | D17: 20+ | E17: 20+ | F17: 20+ | G17: 20+
B18: Construction time (years) | C18: 2 | D18: 2 | E18: 2 | F18: 2 | G18: 2
B19: Financial data
B20: Specific investment (M€ / MW Bio Oil) | C20: n.a. | D20: 2.197275204 | E20: 1.647956403 | F20: 1.235967302 | G20: 1.098637602 | H20: 0.75 | I20: 1.25 | J20: 0.75 | K20: 1.25 | L20: D, G | M20: 6, 8
B21: - equipment (%) | C21: n.a. | D21: 75 | E21: 75 | F21: 75 | G21: 75
B22: -installation (%) | C22: n.a. | D22: 25 | E22: 25 | F22: 25 | G22: 25
B23: Fixed O&M (M€ / MW Bio Oil/year) | C23: n.a. | D23: 0.06277929155 | E23: 0.06277929155 | F23: 0.06277929155 | G23: 0.06277929155 | H23: 0.75 | I23: 1.25 | J23: 0.75 | K23: 1.25 | L23: F, G | M23: 6
B24: Variable O&M (€ /MWh) | C24: n.a. | D24: 14.01323472 | E24: 14.01323472 | F24: 14.01323472 | G24: 14.01323472 | H24: 0.75 | I24: 1.25 | J24: 0.75 | K24: 1.25 | L24: F, G | M24: 6
B25: Start up (€ /MW Bio Oil) | C25: n.a. | D25: 0 | E25: 0 | F25: 0 | G25: 0
B26: Technology specific data
B27: Specific energy content (GJ/ton) HTL) | C27: 36.7 | D27: 36.7 | E27: 36.7 | F27: 36.7 | G27: 36.7
B28: Specific density (kg/l) or (ton/m3) | C28: 1.05 | D28: 1.05 | E28: 1.05 | F28: 1.05 | G28: 1.05
B29: Specific investment (M€ /1000 t Bio Oil) | C29: n.a. | D29: 2.666666667 | E29: 2 | F29: 1.5 | G29: 1.333333333 | H29: 0.75 | I29: 1.25 | J29: 0.75 | K29: 1.25 | L29: D, G | M29: 6, 8
B30: - equipment (%) | C30: n.a. | D30: 75 | E30: 75 | F30: 75 | G30: 75
B31: -installation (%) | C31: n.a. | D31: 25 | E31: 25 | F31: 25 | G31: 25
B32: Fixed O&M (M€ /1,000 t Bio Oil) | C32: n.a. | D32: 0.07619047619 | E32: 0.07619047619 | F32: 0.07619047619 | G32: 0.07619047619 | H32: 0.75 | I32: 1.25 | J32: 0.75 | K32: 1.25 | L32: F, G | M32: 6
B33: Variable O&M (M€ /1,000 t Bio Oil) | C33: n.a. | D33: 0.1428571429 | E33: 0.1428571429 | F33: 0.1428571429 | G33: 0.1428571429 | H33: 0.75 | I33: 1.25 | J33: 0.75 | K33: 1.25 | L33: F, G | M33: 6
B34: Start up (M€ /1,000 t Bio Oil) | C34: n.a. | D34: 0 | E34: 0 | G34: 0
B36: Notes:
B37: A. The plant size range is likely limited by the feedstock availability.
B38: A1. This value is the hourly rating and has been calculated as if the unit produces at capacity and was in operations 8,000 h/year.
B39: B. The plant size range is typical of the range found in the literature. It is highly uncertain given that there is no commercial demonstration plant in operation yet.
B40: C. This is twice the time normally found in process operations.
B41: D. Capital costs for nth plant are used for 2050 and earlier costs are estimates.
B42: E. These are based on extrapolated pilot plant results.
B43: F. Nth plant estimates
B44: G. M €/k tonne is million euro per 1,000 tonnes
B46: References
B47: [1] Steeper Energy Announces Eur 50.6 M (Dkk 377 M) Advanced Biofuel Project With Norwegian-Swedish Joint Venture Silva Green Fuel In Licensing Deal. 2017. http://steeperenergy.com/2017/12/15/steeper-energy-announces-eur-50-6-m-dkk-377-m-advanced-biofuel-project-with-norwegian-swedish-joint-venture-silva-green-fuel-in-licensing-deal/
B48: [2] Jensen, C.U., Rodriguez Guerrero, J.K., Karatzos, S. et al. 2017. Fundamentals of Hydrofaction™: Renewable crude oil from woody biomass. Biomass Conv. Bioref. (2017) 7: 495. https://doi.org/10.1007/s13399-017-0248-8
B49: [3] Environment Canada. 1999. Bunker C Fuel Oil. www.etc-cte.ec.gc.ca/databases/oilproperties/pdf/web_bunker_c_fuel_oil.pdf
B50: [4] Fracking Biomass. Biofuels Digest. Feb 2, 2017. http://www.biofuelsdigest.com/bdigest/2017/02/02/fracking-biomass-steeper-energy-and-the-pursuit-of-renewable-hydrocarbons/
B51: [5] Jensen, C.U., Rodriguez Guerrero, J.K., Karatzos, S. et al. Biomass Conv. Bioref. (2017) 7: 495. https://doi.org/10.1007/s13399-017-0248-8
B52: [6] Toms, P. 2017. Hydrofaction™ Oil: A Solution for Decarbonizing Long-haul Transport. https://www.bio.org/sites/default/files/0830AM-Perry%20Toms.pdf
B53: [7] Zhu, Y., Biddy, M., Jones, S., Elliott, D., Schmidt, A. 2014. Techno-economic analysis of liquid fuel production from woody biomass via hydrothermal liquefaction (HTL) and upgrading, In Applied Energy, Volume 129, 2014, Pages 384-394, ISSN 0306-2619, https://doi.org/10.1016/j.apenergy.2014.03.053
B54: [8] Licella. 2016. Licella Canfor Joint Venture at the forefront of global bioenergy. http://www.licella.com.au/news/licella-canfor-joint-venture-at-the-forefront-of-global-bioenergy/
B55: [9] C.U. Jensen, J.K.R. Guerrero, S. Karatzos, G. Olofsson and S.B. Iversen, 10 - Hydrofaction™ of forestry residues to drop-in renewable transportation fuels, In Direct Thermochemical Liquefaction for Energy Applications, edited by Lasse Rosendahl,, Woodhead Publishing, 2018, Pages 319-345, ISBN 9780081010297, https://doi.org/10.1016/B978-0-08-101029-7.00009-6.
B56: [10] Harris Group. 2013. Production of Advanced Biofuels via Liquefaction Hydrothermal Liquefaction Reactor Design. NREL/SR-5100-60642. http://www.ourenergypolicy.org/wp-content/uploads/2015/08/60462.pdf
B57: [11] Magdeldin, M., Kohl, T., Järvinen, M. 2018. Techno-economic Assessment of Integrated Hydrothermal Liquefaction and Combined Heat and Power Production from Lignocellulose Residues, J. sustain. dev. energy water environ. syst., 6(1), pp 89-113, 2018. https://doi.org/10.13044/j.sdewes.d5.0177
B58: [12] Pedersen, T. H., Hansen, N. H., Pérez, O. M., Cabezas, D. E. and Rosendahl, L. A. 2018. Renewable hydrocarbon fuels from hydrothermal liquefaction: A techno‐economic analysis. Biofuels, Bioprod. Bioref., 12: 213-223. doi:10.1002/bbb.1831

Sheet 101 Catalytic Hydropyrolysis 2
H1: Back to Index
B2: Technology | C2: Catalytic Hydropyrolysis conf. 2
C3: 2015 | D3: 2020 | E3: 2030 | F3: 2040 | G3: 2050 | H3: Uncertainty (2020) | J3: Uncertainty (2050) | L3: Note | M3: Ref
H4: Lower | I4: Upper | J4: Lower | K4: Upper
B5: Energy/technical data
B6: Typical total plant size 1,000 t Bio Oil/year | C6: n.a. | D6: 40 | E6: 80 | F6: 120 | G6: 160 | H6: 0.5 | I6: 1.25 | J6: 0.75 | K6: 1.25 | L6: A, B | M6: 3, 4
B7: Typical total plant size. MW | C7: n.a. | D7: 56.8787619 | E7: 113.7575238 | F7: 170.6362857 | G7: 227.5150476 | H7: 0.5 | I7: 1.25 | J7: 0.75 | K7: 1.25 | L7: A, A1, B | M7: 3, 4
B8: Inputs
B9: Feedstock Consumption, MWh/MWh Total Input | C9: n.a. | D9: 0.99 | E9: 0.99 | F9: 0.99 | G9: 0.99 | H9: 0.9 | I9: 1.5 | J9: 0.9 | K9: 1.25 | L9: D | M9: 5
B10: Electricity Consumption, MWh/MWh Total Input | C10: n.a. | D10: 0.01 | E10: 0.01 | F10: 0.01 | G10: 0.01 | H10: 0.75 | I10: 1.25 | J10: 0.75 | K10: 1.25 | L10: D | M10: 5
B11: Outputs
B12: Bio Oil Output, MWh/MWh Total Input | C12: n.a. | D12: 0.55 | E12: 0.57 | F12: 0.58 | G12: 0.6 | H12: 0.9 | I12: 1.1 | J12: 0.9 | K12: 1.1 | L12: D | M12: 5
B13: Co-products Output MWh/MWh Total Input | C13: n.a. | D13: 0 | E13: 0 | F13: 0 | G13: 0 | H13: 0.9 | I13: 1.1 | J13: 0.9 | K13: 1.1 | L13: D | M13: 5
B15: Forced outage (%) | C15: n.a. | D15: 4 | E15: 4 | F15: 0 | G15: 0
B16: Planned outage (weeks per year) | C16: n.a. | D16: 2 | E16: 3 | F16: 4 | G16: 5 | M16: 5
B17: Technical lifetime (years) | C17: n.a. | D17: 20+ | E17: 20+ | F17: 20+ | G17: 20+
B18: Construction time (years) | C18: n.a. | D18: 2 | E18: 2 | F18: 2 | G18: 2 | M18: 5
B19: Financial data
B20: Specific investment (M€ /MW Bio Oil) | C20: n.a. | D20: 2.782255814 | E20: 1.576611628 | F20: 1.154636163 | G20: 0.9274186047 | H20: 0.75 | I20: 1.25 | J20: 0.75 | K20: 1.25 | L20: C, F | M20: 5, 11
B21: - equipment (%) | C21: n.a. | D21: 75 | E21: 75 | F21: 75 | G21: 75
B22: -installation (%) | C22: n.a. | D22: 25 | E22: 25 | F22: 25 | G22: 25
B23: Fixed O&M (M€ /MW/year Bio Oil) | C23: n.a. | D23: 0.02742697674 | E23: 0.02742697674 | F23: 0.02742697674 | G23: 0.02742697674 | H23: 0.75 | I23: 1.25 | J23: 0.75 | K23: 1.25 | L23: E, F | M23: 5
B24: Variable O&M (€ /MWh Bio Oil) | C24: n.a. | D24: 1.306046512 | E24: 1.306046512 | F24: 1.306046512 | G24: 1.306046512 | H24: 0.75 | I24: 1.25 | J24: 0.75 | K24: 1.25 | L24: E, F | M24: 5
B25: Start up (€ /l Bio Oil) | C25: n.a. | D25: 0 | E25: 0 | F25: 0 | G25: 0
B26: Technology specific data
B27: Specific energy content (GJ/ton) | C27: 43 | D27: 43 | E27: 43 | F27: 43 | G27: 43
B28: Specific density (kg/l) or (ton/m3) | C28: 0.78 | D28: 0.78 | E28: 0.78 | F28: 0.78 | G28: 0.78
B29: Specific investment (M€ /l1000 t Bio Oil) | C29: n.a. | D29: 3.95625 | E29: 2.241875 | F29: 1.64184375 | G29: 1.31875 | H29: 0.75 | I29: 1.25 | J29: 0.75 | K29: 1.25 | L29: C, F | M29: 5, 11
B30: - equipment (%) | C30: n.a. | D30: 75 | E30: 75 | F30: 75 | G30: 75
B31: -installation (%) | C31: n.a. | D31: 25 | E31: 25 | F31: 25 | G31: 25
B32: Fixed O&M (M€ /1,000 t Bio Oil) | C32: n.a. | D32: 0.039 | E32: 0.039 | F32: 0.039 | G32: 0.039 | H32: 0.75 | I32: 1.25 | J32: 0.75 | K32: 1.25 | L32: E, F | M32: 5
B33: Variable O&M (€ /1,000 t Bio Oil) | C33: n.a. | D33: 0.0156 | E33: 0.0156 | F33: 0.0156 | G33: 0.0156 | H33: 0.75 | I33: 1.25 | J33: 0.75 | K33: 1.25 | L33: E, F | M33: 5
B34: Start up (€ /l Bio Oil) | C34: n.a. | D34: 0 | E34: 0 | F34: 0 | G34: 0
B36: Notes:
B37: A. The plant size range is likely limited by the feedstock availability.
B38: A1. This value is the hourly rating and has been calculated as if the unit produces at capacity and was in operations 8,000 h/year.
B39: B. The plant size range is typical of the range found in the literature. It is highly uncertain given that there is no commercial demonstration plant in operation yet.
B40: C. Capital costs for nth plant are used for 2050 and earlier costs are estimates.
B41: D. These are based on extrapolated pilot plant results.
B42: E. Nth plant estimates
B43: F. M €/k tonne is million euro per 1,000 tonnes

Sheet 101 Catalytic Hydropyrolysis 1
H1: Back to Index
B2: Technology | D2: Catalytic Hydroprocessing conf. 1
C3: 2015 | D3: 2020 | E3: 2030 | F3: 2040 | G3: 2050 | H3: Uncertainty (2020) | J3: Uncertainty (2050) | L3: Note | M3: Ref
H4: Lower | I4: Upper | J4: Lower | K4: Upper
B5: Energy/technical data
B6: Typical total plant size 1,000 t liquid fuels/year | C6: n.a. | D6: 40 | E6: 80 | F6: 120 | G6: 160 | H6: 0.5 | I6: 1.25 | J6: 0.75 | K6: 1.25 | L6: A, B | M6: 3, 4
B7: Typical total plant size. MW | C7: n.a. | D7: 57 | E7: 114 | F7: 171 | G7: 228 | H7: 0.5 | I7: 1.25 | J7: 0.75 | K7: 1.25 | L7: A, A1, B | M7: 3, 4
B8: Inputs
B9: Feedstock Consumption, MWh/MWh Total Input | C9: n.a. | D9: 0.77 | E9: 0.77 | F9: 0.77 | G9: 0.77 | H9: 0.9 | I9: 1.5 | J9: 0.9 | K9: 1.25 | L9: C | M9: 1
B10: Hydrogen Consumption, MWh/MWh Total Input | C10: n.a. | D10: 0.23 | E10: 0.23 | F10: 0.23 | G10: 0.23 | H10: 0.75 | I10: 1.25 | J10: 0.75 | K10: 1.25 | L10: C | M10: 1
B11: Outputs
B12: Liquid Fuel Output, MWh/MWh Total Input | C12: n.a. | D12: 0.38 | E12: 0.38 | F12: 0.38 | G12: 0.38 | H12: 0.9 | I12: 1.1 | J12: 0.9 | K12: 1.1 | L12: C | M12: 1
B13: Biochar, Output, MWh/MWh Total Input | C13: n.a. | D13: 0.13 | E13: 0.13 | F13: 0.13 | G13: 0.13 | H13: 0.9 | I13: 1.1 | J13: 0.9 | K13: 1.1 | L13: C | M13: 1
B14: Gas Output, MWh/MWh Total Input | C14: n.a. | D14: 0.31 | E14: 0.31 | F14: 0.31 | G14: 0.31 | H14: 0.9 | I14: 1.1 | J14: 0.9 | K14: 1.1 | L14: C | M14: 1
B15: District Heat MWh/MWh Total Input | C15: n.a. | D15: 0.18 | E15: 0.18 | F15: 0.18 | G15: 0.18 | H15: 0.9 | I15: 1.1 | J15: 0.9 | K15: 1.1 | L15: C | M15: 1
B16: Technology specific data
B17: Specific energy content (GJ/ton) | D17: 43
B18: Specific density (kg/l) or (ton/m3) | D18: 0.83
B20: Notes:
B21: A. The plant size range is likely limited by the feedstock availability.
B22: A1. This value is the hourly rating and has been calculated as if the unit produces at capacity and was in operations 8,000 h/year.
B23: B. The plant size range is typical of the range found in the literature. It is highly uncertain given that there is no commercial demonstration plant in operation yet.
B24: C. These are based on extrapolated pilot plant results.
